Workbook

Sheet Ввод данных
A1: Приложение 2. Мониторинг апробации выполнения видов испытаний (тестов)
A2: Всероссийского физкультурно-спортивного комплекса "Готов к труду и обороне" (ГТО)
A4: Наименование субъекта Российской Федерации: | E4: Республика Татарстан
A6: Категория | B6: Пол | C6: Общее количество обучающихся, относящихся к возрастной категории | D6: Количество обучающихся, участвовавших в апробации | E6: Количество обучающихся, не допущеных по медицинским показаниям (освобождены от двигательной нагрузки) - от общего кол-ва | F6: Виды испытаний (тесты) ВФСК ГТО и количество результатов по знакам отличия | BT6: Общее количество результатов, соответствующих знакам отличия ВФСК ГТО | BZ6: Количество видов испытаний в категории | CA6: Виды испытаний с участием | CL6: Виды без участия
F7: Челночный бег 3х10 м (с) / Бег 30 м (с) / Бег 60 м (с) / Бег 100 м (с) | L7: Смешанное передвижение (1 км) / Бег 1 км (мин, с) / Бег 1,5 км (мин, с) / Бег 2 км (мин, с) | R7: Подтягивание из виса на высокой перекладине / Рывок гири 16 кг // Подтягивание из виса лежа на низкой перекладине / Сгибание и разгибание рук в упоре лежа на полу (количество раз) | X7: Наклон вперед из положения стоя с прямыми ногами на полу (см) | AD7: Прыжок в длину с места толчком двумя ногами (см) / Прыжок в длину с разбега (см) | AJ7: Метание теннисного мяча в цель, дистанция 6 м (количество раз) / Метание мяча весом 150 г (м) / Метание спортивного снаряда весом 700 г или 500 г | AP7: Бег на лыжах на 1 км/ 2 км/ 3 км/ 5 км // Кросс по пересеченной местности 2 км/ 3 км/ 5 км | AV7: Плавание без учета времени / Плавание 50 м (мин, с) | BB7: Стрельба из пневматической винтовки / Электронного оружия из положения сидя или стоя с опорой локтей о стол или стойку (очки) | BH7: Поднимание туловища из положения лежа на спине (1 мин) | BN7: Туристский поход с проверкой туристских навыков | BQ7: Туристский поход (продолжение)
F8: Золото | G8: Серебро | H8: Бронза | I8: Сдано | J8: Не сдано | K8: Всего | L8: Золото | M8: Серебро | N8: Бронза | O8: Сдано | P8: Не сдано | Q8: Всего | R8: Золото | S8: Серебро | T8: Бронза | U8: Сдано | V8: Не сдано | W8: Всего | X8: Золото | Y8: Серебро | Z8: Бронза | AA8: Сдано | AB8: Не сдано | AC8: Всего | AD8: Золото | AE8: Серебро | AF8: Бронза | AG8: Сдано | AH8: Не сдано | AI8: Всего | AJ8: Золото | AK8: Серебро | AL8: Бронза | AM8: Сдано | AN8: Не сдано | AO8: Всего | AP8: Золото | AQ8: Серебро | AR8: Бронза | AS8: Сдано | AT8: Не сдано | AU8: Всего | AV8: Золото | AW8: Серебро | AX8: Бронза | AY8: Сдано | AZ8: Не сдано | BA8: Всего | BB8: Золото | BC8: Серебро | BD8: Бронза | BE8: Сдано | BF8: Не сдано | BG8: Всего | BH8: Золото | BI8: Серебро | BJ8: Бронза | BK8: Сдано | BL8: Не сдано | BM8: Всего | BN8: Золото | BO8: Серебро | BP8: Бронза | BQ8: Сдано | BR8: Не сдано | BS8: Всего | BT8: Золото | BU8: Серебро | BV8: Бронза | BW8: Сдано | BX8: Не сдано | BY8: Всего
A9: 1 | B9: 2 | C9: 3 | D9: 4 | E9: 5 | F9: 6 | G9: 7 | H9: 8 | L9: 9 | M9: 10 | N9: 11 | R9: 12 | S9: 13 | T9: 14 | X9: 15 | Y9: 16 | Z9: 17 | AD9: 18 | AE9: 19 | AF9: 20 | AJ9: 21 | AK9: 22 | AL9: 23 | AP9: 24 | AQ9: 25 | AR9: 26 | AV9: 27 | AW9: 28 | AX9: 29 | BB9: 30 | BC9: 31 | BD9: 32 | BH9: 33 | BI9: 34 | BJ9: 35 | BN9: 36 | BO9: 37 | BP9: 38 | BT9: 50 | BU9: 51 | BV9: 52 | CA9: 1 | CB9: 2 | CC9: 3 | CD9: 4 | CE9: 5 | CF9: 6 | CG9: 7 | CH9: 8 | CI9: 9 | CJ9: 10 | CK9: 11 | CL9: S
A10: 1 ступень | B10: м | C10: 3 | D10: 3 | F10: 0 | G10: 0 | H10: 3 | I10: =SUM(F10:H10) -> 3 | J10: =IF(SUM(F10:H10)=0,0,D10-I10) -> 0 | K10: =I10+J10 -> 3 | M10: 2 | N10: 1 | O10: =SUM(L10:N10) -> 3 | P10: =IF(SUM(L10:N10)=0,0,D10-O10) -> 0 | Q10: =O10+P10 -> 3 | S10: 1 | T10: 2 | U10: =SUM(R10:T10) -> 3 | V10: =IF(SUM(R10:T10)=0,0,D10-U10) -> 0 | W10: =U10+V10 -> 3 | Y10: 1 | Z10: 2 | AA10: =SUM(X10:Z10) -> 3 | AB10: =IF(SUM(X10:Z10)=0,0,D10-AA10) -> 0 | AC10: =AA10+AB10 -> 3 | AE10: 3 | AG10: =SUM(AD10:AF10) -> 3 | AH10: =IF(SUM(AD10:AF10)=0,0,D10-AG10) -> 0 | AI10: =AG10+AH10 -> 3 | AK10: 1 | AL10: 2 | AM10: =SUM(AJ10:AL10) -> 3 | AN10: =IF(SUM(AJ10:AL10)=0,0,D10-AM10) -> 0 | AO10: =AM10+AN10 -> 3 | AQ10: 1 | AR10: 2 | AS10: =SUM(AP10:AR10) -> 3 | AT10: =IF(SUM(AP10:AR10)=0,0,D10-AS10) -> 0 | AU10: =AS10+AT10 -> 3 | AX10: 3 | AY10: =SUM(AV10:AX10) -> 3 | AZ10: =IF(SUM(AV10:AX10)=0,0,D10-AY10) -> 0 | BA10: =AY10+AZ10 -> 3 | BD10: 3 | BE10: =SUM(BB10:BD10) -> 3 | BF10: =IF(SUM(BB10:BD10)=0,0,D10-BE10) -> 0 | BG10: =BE10+BF10 -> 3 | BJ10: 3 | BK10: =SUM(BH10:BJ10) -> 3 | BL10: =IF(SUM(BH10:BJ10)=0,0,D10-BK10) -> 0 | BM10: =BK10+BL10 -> 3 | BP10: 3 | BQ10: =SUM(BN10:BP10) -> 3 | BR10: =IF(SUM(BN10:BP10)=0,0,D10-BQ10) -> 0 | BS10: =BQ10+BR10 -> 3 | BT10: =SUMIF(Знаки_отл_Диапазон,"Золото",F10:BS10) -> 0 | BU10: =SUMIF(Знаки_отл_Диапазон,"Серебро",F10:BS10) -> 9 | BV10: =SUMIF(Знаки_отл_Диапазон,"Бронза",F10:BS10) -> 24 | BW10: =SUM(BT10:BV10) -> 33 | BX10: =SUMIF(Знаки_отл_Диапазон,"Не сдано",F10:BS10) -> 0 | BY10: =SUMIF(Знаки_отл_Диапазон,"Всего",F10:BS10) -> 33 | BZ10: =Кол_видов_испытаний-CL10 -> 11 | CA10: =I10 -> 3 | CB10: =O10 -> 3 | CC10: =W10 -> 3 | CD10: =AC10 -> 3 | CE10: =AI10 -> 3 | CF10: =AO10 -> 3 | CG10: =AU10 -> 3 | CH10: =BA10 -> 3 | CI10: =BG10 -> 3 | CJ10: =BM10 -> 3 | CK10: =BS10 -> 3 | CL10: =COUNTIF(CA10:CK10,0) -> 0
A11: 6 - 8 лет | B11: д | C11: 4 | D11: 4 | F11: 0 | G11: 1 | H11: 3 | I11: 4 | J11: =IF(SUM(F11:H11)=0,0,D11-I11) -> 0 | K11: =I11+J11 -> 4 | M11: 1 | N11: 3 | O11: 4 | P11: =IF(SUM(L11:N11)=0,0,D11-O11) -> 0 | Q11: =O11+P11 -> 4 | R11: 1 | S11: 1 | T11: 2 | U11: 4 | V11: =IF(SUM(R11:T11)=0,0,D11-U11) -> 0 | W11: =U11+V11 -> 4 | Y11: 1 | Z11: 3 | AA11: 4 | AB11: =IF(SUM(X11:Z11)=0,0,D11-AA11) -> 0 | AC11: =AA11+AB11 -> 4 | AE11: 3 | AF11: 1 | AG11: 4 | AH11: =IF(SUM(AD11:AF11)=0,0,D11-AG11) -> 0 | AI11: =AG11+AH11 -> 4 | AK11: 1 | AL11: 3 | AM11: 4 | AN11: =IF(SUM(AJ11:AL11)=0,0,D11-AM11) -> 0 | AO11: =AM11+AN11 -> 4 | AQ11: 1 | AR11: 3 | AS11: 4 | AT11: =IF(SUM(AP11:AR11)=0,0,D11-AS11) -> 0 | AU11: =AS11+AT11 -> 4 | AW11: 1 | AX11: 3 | AY11: 4 | AZ11: =IF(SUM(AV11:AX11)=0,0,D11-AY11) -> 0 | BA11: =AY11+AZ11 -> 4 | BD11: 4 | BE11: 4 | BF11: =IF(SUM(BB11:BD11)=0,0,D11-BE11) -> 0 | BG11: =BE11+BF11 -> 4 | BJ11: 4 | BK11: 4 | BL11: =IF(SUM(BH11:BJ11)=0,0,D11-BK11) -> 0 | BM11: =BK11+BL11 -> 4 | BP11: 4 | BQ11: 4 | BR11: =IF(SUM(BN11:BP11)=0,0,D11-BQ11) -> 0 | BS11: =BQ11+BR11 -> 4 | BT11: 1 | BU11: 10 | BV11: 33 | BW11: =SUM(BT11:BV11) -> 44 | BX11: 0 | BY11: 44 | BZ11: 11 | CA11: 4 | CB11: 4 | CC11: 4 | CD11: 4 | CE11: 4 | CF11: 4 | CG11: 4 | CH11: 4 | CI11: 4 | CJ11: 4 | CK11: 4 | CL11: =COUNTIF(CA11:CK11,0) -> 0
A12: 2 ступень | B12: м | C12: 3 | D12: 3 | G12: 1 | H12: 2 | I12: 3 | J12: 0 | K12: 3 | M12: 1 | N12: 2 | O12: 3 | P12: 0 | Q12: 3 | S12: 1 | T12: 2 | U12: 3 | V12: 0 | W12: 3 | Y12: 1 | Z12: 2 | AA12: 3 | AB12: 0 | AC12: 3 | AE12: 1 | AF12: 2 | AG12: 3 | AH12: 0 | AI12: 3 | AK12: 1 | AL12: 2 | AM12: 3 | AN12: 0 | AO12: 3 | AQ12: 1 | AR12: 2 | AS12: 3 | AT12: 0 | AU12: 3 | AW12: 1 | AX12: 2 | AY12: 3 | AZ12: 0 | BA12: 3 | BD12: 3 | BE12: 3 | BF12: 0 | BG12: 3 | BI12: 1 | BJ12: 2 | BK12: 3 | BL12: 0 | BM12: 3 | BP12: 3 | BQ12: 3 | BR12: 0 | BS12: 3 | BT12: 0 | BU12: 9 | BV12: 24 | BW12: 33 | BX12: 0 | BY12: 33 | BZ12: 11 | CA12: 3 | CB12: 3 | CC12: 3 | CD12: 3 | CE12: 3 | CF12: 3 | CG12: 3 | CH12: 3 | CI12: 3 | CJ12: 3 | CK12: 3 | CL12: 0
A13: 9 - 10 лет | B13: д | C13: 5 | D13: 5 | G13: 1 | H13: 4 | I13: 5 | J13: 0 | K13: 5 | M13: 1 | N13: 4 | O13: 5 | P13: 0 | Q13: 5 | S13: 1 | T13: 4 | U13: 5 | V13: 0 | W13: 5 | Y13: 4 | Z13: 1 | AA13: 5 | AB13: 0 | AC13: 5 | AE13: 2 | AF13: 3 | AG13: 5 | AH13: 0 | AI13: 5 | AK13: 2 | AL13: 3 | AM13: 5 | AN13: 0 | AO13: 5 | AQ13: 2 | AR13: 3 | AS13: 5 | AT13: 0 | AU13: 5 | AW13: 2 | AX13: 3 | AY13: 5 | AZ13: 0 | BA13: 5 | BC13: 2 | BD13: 3 | BE13: 5 | BF13: 0 | BG13: 5 | BH13: 1 | BI13: 2 | BJ13: 2 | BK13: 5 | BL13: 0 | BM13: 5 | BO13: 5 | BQ13: 5 | BR13: 0 | BS13: 5 | BT13: 1 | BU13: 24 | BV13: 30 | BW13: 55 | BX13: 0 | BY13: 55 | BZ13: 11 | CA13: 5 | CB13: 5 | CC13: 5 | CD13: 5 | CE13: 5 | CF13: 5 | CG13: 5 | CH13: 5 | CI13: 5 | CJ13: 5 | CK13: 5 | CL13: 0
A14: 3 ступень | B14: ю | C14: 6 | D14: 6 | G14: 2 | H14: 4 | I14: 6 | J14: 0 | K14: 6 | M14: 2 | N14: 4 | O14: 6 | P14: 0 | Q14: 6 | S14: 2 | T14: 4 | U14: 6 | V14: 0 | W14: 6 | Y14: 2 | Z14: 4 | AA14: 6 | AB14: 0 | AC14: 6 | AE14: 2 | AF14: 4 | AG14: 6 | AH14: 0 | AI14: 6 | AK14: 2 | AL14: 4 | AM14: 6 | AN14: 0 | AO14: 6 | AQ14: 2 | AR14: 4 | AS14: 6 | AT14: 0 | AU14: 6 | AV14: 2 | AW14: 4 | AY14: 6 | AZ14: 0 | BA14: 6 | BC14: 2 | BD14: 4 | BE14: 6 | BF14: 0 | BG14: 6 | BH14: 2 | BJ14: 4 | BK14: 6 | BL14: 0 | BM14: 6 | BN14: 2 | BO14: 4 | BQ14: 6 | BR14: 0 | BS14: 6 | BT14: 6 | BU14: 24 | BV14: 36 | BW14: 66 | BX14: 0 | BY14: 66 | BZ14: 11 | CA14: 6 | CB14: 6 | CC14: 6 | CD14: 6 | CE14: 6 | CF14: 6 | CG14: 6 | CH14: 6 | CI14: 6 | CJ14: 6 | CK14: 6 | CL14: 0
A15: 11 - 12 лет | B15: д | C15: 4 | D15: 3 | E15: 1 | F15: 1 | H15: 2 | I15: 3 | J15: 0 | K15: 3 | L15: 1 | N15: 2 | O15: 3 | P15: 0 | Q15: 3 | R15: 1 | T15: 2 | U15: 3 | V15: 0 | W15: 3 | X15: 1 | Z15: 2 | AA15: 3 | AB15: 0 | AC15: 3 | AD15: 1 | AF15: 2 | AG15: 3 | AH15: 0 | AI15: 3 | AJ15: 1 | AL15: 2 | AM15: 3 | AN15: 0 | AO15: 3 | AQ15: 1 | AR15: 2 | AS15: 3 | AT15: 0 | AU15: 3 | AV15: 1 | AX15: 2 | AY15: 3 | AZ15: 0 | BA15: 3 | BB15: 1 | BD15: 2 | BE15: 3 | BF15: 0 | BG15: 3 | BH15: 1 | BJ15: 2 | BK15: 3 | BL15: 0 | BM15: 3 | BN15: 1 | BO15: 2 | BQ15: 3 | BR15: 0 | BS15: 3 | BT15: 10 | BU15: 3 | BV15: 20 | BW15: 33 | BX15: 0 | BY15: 33 | BZ15: 11 | CA15: 3 | CB15: 3 | CC15: 3 | CD15: 3 | CE15: 3 | CF15: 3 | CG15: 3 | CH15: 3 | CI15: 3 | CJ15: 3 | CK15: 3 | CL15: 0
A16: 4 ступень | B16: ю | C16: 16 | D16: 15 | E16: 1 | F16: 6 | G16: 3 | H16: 6 | I16: 15 | J16: 0 | K16: 15 | L16: 6 | M16: 3 | N16: 6 | O16: 15 | P16: 0 | Q16: 15 | R16: 6 | S16: 3 | T16: 6 | U16: 15 | V16: 0 | W16: 15 | X16: 6 | Y16: 3 | Z16: 6 | AA16: 15 | AB16: 0 | AC16: 15 | AD16: 6 | AE16: 3 | AF16: 6 | AG16: 15 | AH16: 0 | AI16: 15 | AJ16: 6 | AK16: 3 | AL16: 6 | AM16: 15 | AN16: 0 | AO16: 15 | AP16: 6 | AQ16: 3 | AR16: 6 | AS16: 15 | AT16: 0 | AU16: 15 | AV16: 6 | AW16: 3 | AX16: 6 | AY16: 15 | AZ16: 0 | BA16: 15 | BB16: 6 | BC16: 3 | BD16: 6 | BE16: 15 | BF16: 0 | BG16: 15 | BH16: 6 | BI16: 6 | BJ16: 3 | BK16: 15 | BL16: 0 | BM16: 15 | BN16: 6 | BO16: 6 | BP16: 3 | BQ16: 15 | BR16: 0 | BS16: 15 | BT16: 66 | BU16: 39 | BV16: 60 | BW16: 165 | BX16: 0 | BY16: 165 | BZ16: 11 | CA16: 15 | CB16: 15 | CC16: 15 | CD16: 15 | CE16: 15 | CF16: 15 | CG16: 15 | CH16: 15 | CI16: 15 | CJ16: 15 | CK16: 15 | CL16: 0
A17: 13 - 15 лет | B17: д | C17: 9 | D17: 9 | G17: 3 | H17: 6 | I17: 9 | J17: 0 | K17: 9 | M17: 3 | N17: 6 | O17: 9 | P17: 0 | Q17: 9 | S17: 3 | T17: 6 | U17: 9 | V17: 0 | W17: 9 | Y17: 3 | Z17: 6 | AA17: 9 | AB17: 0 | AC17: 9 | AE17: 3 | AF17: 6 | AG17: 9 | AH17: 0 | AI17: 9 | AK17: 3 | AL17: 6 | AM17: 9 | AN17: 0 | AO17: 9 | AQ17: 3 | AR17: 6 | AS17: 9 | AT17: 0 | AU17: 9 | AW17: 3 | AX17: 6 | AY17: 9 | AZ17: 0 | BA17: 9 | BC17: 3 | BD17: 6 | BE17: 9 | BF17: 0 | BG17: 9 | BI17: 6 | BJ17: 3 | BK17: 9 | BL17: 0 | BM17: 9 | BO17: 6 | BP17: 3 | BQ17: 9 | BR17: 0 | BS17: 9 | BT17: 0 | BU17: 39 | BV17: 60 | BW17: 99 | BX17: 0 | BY17: 99 | BZ17: 11 | CA17: 9 | CB17: 9 | CC17: 9 | CD17: 9 | CE17: 9 | CF17: 9 | CG17: 9 | CH17: 9 | CI17: 9 | CJ17: 9 | CK17: 9 | CL17: 0
A18: 5 ступень | B18: ю | C18: 6 | D18: 6 | F18: 2 | H18: 4 | I18: 6 | J18: 0 | K18: 6 | L18: 2 | N18: 4 | O18: 6 | P18: 0 | Q18: 6 | R18: 2 | T18: 4 | U18: 6 | V18: 0 | W18: 6 | X18: 2 | Z18: 4 | AA18: 6 | AB18: 0 | AC18: 6 | AD18: 2 | AF18: 4 | AG18: 6 | AH18: 0 | AI18: 6 | AJ18: 2 | AL18: 4 | AM18: 6 | AN18: 0 | AO18: 6 | AP18: 2 | AR18: 4 | AS18: 6 | AT18: 0 | AU18: 6 | AV18: 2 | AX18: 4 | AY18: 6 | AZ18: 0 | BA18: 6 | BB18: 2 | BC18: 2 | BD18: 2 | BE18: 6 | BF18: 0 | BG18: 6 | BH18: 2 | BI18: 4 | BK18: 6 | BL18: 0 | BM18: 6 | BN18: 2 | BO18: 4 | BQ18: 6 | BR18: 0 | BS18: 6 | BT18: 22 | BU18: 10 | BV18: 34 | BW18: 66 | BX18: 0 | BY18: 66 | BZ18: 11 | CA18: 6 | CB18: 6 | CC18: 6 | CD18: 6 | CE18: 6 | CF18: 6 | CG18: 6 | CH18: 6 | CI18: 6 | CJ18: 6 | CK18: 6 | CL18: 0
A19: 16 - 17 лет | B19: д | C19: 6 | D19: 6 | F19: 1 | H19: 5 | I19: 6 | J19: 0 | K19: 6 | L19: 1 | N19: 5 | O19: 6 | P19: 0 | Q19: 6 | R19: 1 | T19: 5 | U19: 6 | V19: 0 | W19: 6 | X19: 1 | Z19: 5 | AA19: 6 | AB19: 0 | AC19: 6 | AD19: 1 | AF19: 5 | AG19: 6 | AH19: 0 | AI19: 6 | AJ19: 1 | AL19: 5 | AM19: 6 | AN19: 0 | AO19: 6 | AP19: 1 | AR19: 5 | AS19: 6 | AT19: 0 | AU19: 6 | AV19: 1 | AX19: 5 | AY19: 6 | AZ19: 0 | BA19: 6 | BB19: 1 | BC19: 2 | BD19: 3 | BE19: 6 | BF19: 0 | BG19: 6 | BH19: 1 | BI19: 4 | BJ19: 1 | BK19: 6 | BL19: 0 | BM19: 6 | BN19: 1 | BO19: 5 | BQ19: 6 | BR19: 0 | BS19: 6 | BT19: 11 | BU19: 11 | BV19: 44 | BW19: 66 | BX19: 0 | BY19: 66 | BZ19: 11 | CA19: 6 | CB19: 6 | CC19: 6 | CD19: 6 | CE19: 6 | CF19: 6 | CG19: 6 | CH19: 6 | CI19: 6 | CJ19: 6 | CK19: 6 | CL19: 0
A20: ИТОГО: | B20: м (ю) | C20: =C10+C12+C14+C16+C18 -> 34 | D20: =D10+D12+D14+D16+D18 -> 33 | E20: 1 | F20: 8 | G20: 6 | H20: 19 | I20: =I10+I12+I14+I16+I18 -> 33 | J20: =J10+J12+J14+J16+J18 -> 0 | K20: 33 | L20: 8 | M20: 8 | N20: 17 | O20: =O10+O12+O14+O16+O18 -> 33 | P20: =P10+P12+P14+P16+P18 -> 0 | Q20: 33 | R20: 8 | S20: 7 | T20: 18 | U20: 33 | V20: 0 | W20: =W10+W12+W14+W16+W18 -> 33 | X20: 8 | Y20: 7 | Z20: 18 | AA20: 33 | AB20: 0 | AC20: =AC10+AC12+AC14+AC16+AC18 -> 33 | AD20: 8 | AE20: 9 | AF20: 16 | AG20: 33 | AH20: 0 | AI20: =AI10+AI12+AI14+AI16+AI18 -> 33 | AJ20: 8 | AK20: 7 | AL20: 18 | AM20: 33 | AN20: 0 | AO20: =AO10+AO12+AO14+AO16+AO18 -> 33 | AP20: 8 | AQ20: 7 | AR20: 18 | AS20: 33 | AT20: 0 | AU20: =AU10+AU12+AU14+AU16+AU18 -> 33 | AV20: 10 | AW20: 8 | AX20: 15 | AY20: 33 | AZ20: 0 | BA20: =BA10+BA12+BA14+BA16+BA18 -> 33 | BB20: 8 | BC20: 7 | BD20: =BD10+BD12+BD14+BD16+BD18 -> 18 | BE20: =BE10+BE12+BE14+BE16+BE18 -> 33 | BF20: 0 | BG20: =BG10+BG12+BG14+BG16+BG18 -> 33 | BH20: 10 | BI20: 11 | BJ20: 12 | BK20: 33 | BL20: 0 | BM20: 33 | BN20: 10 | BO20: 14 | BP20: =BP10+BP12+BP14+BP16+BP18 -> 9 | BQ20: =BQ10+BQ12+BQ14+BQ16+BQ18 -> 33 | BR20: 0 | BS20: =BS10+BS12+BS14+BS16+BS18 -> 33 | BT20: =BT10+BT12+BT14+BT16+BT18 -> 94 | BU20: 91 | BV20: 178 | BW20: 363 | BX20: 0 | BY20: 363 | CA20: Количество видов испытаний | CL20: =COUNTA(CA9:CK9) -> 11
B21: д | C21: =C11+C13+C15+C17+C19 -> 28 | D21: =D11+D13+D15+D17+D19 -> 27 | E21: 1 | F21: 2 | G21: 5 | H21: 20 | I21: =I11+I13+I15+I17+I19 -> 27 | J21: =J11+J13+J15+J17+J19 -> 0 | K21: 27 | L21: 2 | M21: 5 | N21: 20 | O21: =O11+O13+O15+O17+O19 -> 27 | P21: =P11+P13+P15+P17+P19 -> 0 | Q21: 27 | R21: 3 | S21: 5 | T21: 19 | U21: 27 | V21: 0 | W21: =W11+W13+W15+W17+W19 -> 27 | X21: 2 | Y21: 8 | Z21: 17 | AA21: 27 | AB21: 0 | AC21: =AC11+AC13+AC15+AC17+AC19 -> 27 | AD21: 2 | AE21: 8 | AF21: 17 | AG21: 27 | AH21: 0 | AI21: =AI11+AI13+AI15+AI17+AI19 -> 27 | AJ21: 2 | AK21: 6 | AL21: 19 | AM21: 27 | AN21: 0 | AO21: =AO11+AO13+AO15+AO17+AO19 -> 27 | AP21: 1 | AQ21: 7 | AR21: 19 | AS21: 27 | AT21: 0 | AU21: =AU11+AU13+AU15+AU17+AU19 -> 27 | AV21: 2 | AW21: 6 | AX21: 19 | AY21: 27 | AZ21: 0 | BA21: =BA11+BA13+BA15+BA17+BA19 -> 27 | BB21: 2 | BC21: 7 | BD21: =BD11+BD13+BD15+BD17+BD19 -> 18 | BE21: =BE11+BE13+BE15+BE17+BE19 -> 27 | BF21: 0 | BG21: =BG11+BG13+BG15+BG17+BG19 -> 27 | BH21: 3 | BI21: 12 | BJ21: 12 | BK21: 27 | BL21: 0 | BM21: 27 | BN21: 2 | BO21: 18 | BP21: =BP11+BP13+BP15+BP17+BP19 -> 7 | BQ21: =BQ11+BQ13+BQ15+BQ17+BQ19 -> 27 | BR21: 0 | BS21: =BS11+BS13+BS15+BS17+BS19 -> 27 | BT21: 23 | BU21: 87 | BV21: 187 | BW21: 297 | BX21: 0 | BY21: 297
A22: Общее количество | C22: =C20+C21 -> 62 | D22: =D20+D21 -> 60 | E22: =E20+E21 -> 2

Sheet Расчеты (hidden)
A1: Приложение 2. Мониторинг апробации выполнения видов испытаний (тестов)
A2: Всероссийского физкультурно-спортивного комплекса "Готов к труду и обороне" (ГТО)
A4: Наименование субъекта Российской Федерации: | E4: =IF('Ввод данных'!E4:K4="","",'Ввод данных'!E4:K4) -> Республика Татарстан
A6: Категория | B6: Пол | C6: Общее количество обучающихся, относящихся к возрастной категории | E6: Количество обучающихся, участвовавших в апробации | G6: Количество обучающихся, не допущеных по медицинским показаниям (освобождены от двигательной нагрузки) - от общего количества обучающихся | I6: Количество видов испытаний в категории | J6: Общее количество результатов, соответствующих знакам отличия ВФСК ГТО | U6: Вид испытания | AF6: Вид испытания | AQ6: Вид испытания | BB6: Вид испытания | BM6: Вид испытания | BX6: Вид испытания | CI6: Вид испытания | CT6: Вид испытания | DE6: Вид испытания | DP6: Вид испытания | EA6: Вид испытания
U7: Челночный бег 3х10 м (с) / Бег 30 м (с) / Бег 60 м (с) / Бег 100 м (с) | AF7: Смешанное передвижение (1 км) / Бег 1 км (мин, с) / Бег 1,5 км (мин, с) / Бег 2 км (мин, с) | AQ7: Подтягивание из виса на высокой перекладине/ Рывок гири 16 кг // Подтягивание из виса лежа на низкой перекладине / Сгибание и разгибание рук в упоре лежа на полу (количество раз) | BB7: Наклон вперед из положения стоя с прямыми ногами на полу (см) | BM7: Прыжок в длину с места толчком двумя ногами (см) / Прыжок в длину с разбега (см) | BX7: Метание теннисного мяча в цель, дистанция 6 м (количество раз) / Метание мяча весом 150 г (м) / Метание спортивного снаряда весом 700 г или 500 г | CI7: Бег на лыжах на 1 км/ 2 км/ 3 км/ 5 км // Кросс по пересеченной местности 2 км/ 3 км/ 5 км | CT7: Плавание без учета времени / Плавание 50 м (мин, с) | DE7: Стрельба из пневматической винтовки / Электронного оружия из положения сидя или стоя с опорой локтей о стол или стойку (очки) | DP7: Поднимание туловища из положения лежа на спине (1 мин) | EA7: Туристский поход с проверкой туристских навыков
C8: Чел. | D8: % м (д) от их общего количества | E8: Чел. | F8: % от общего количества обучающихся | G8: Чел. | H8: % от общего количества обучающихся | J8: Количество результатов в категории | K8: Золото | M8: Серебро | O8: Бронза | Q8: Всего сдано | S8: Не сдано | U8: Кол-во рез-в общее | V8: Золото | X8: Серебро | Z8: Бронза | AB8: Всего сдано | AD8: Не сдано | AF8: Кол-во рез-в общее | AG8: Золото | AI8: Серебро | AK8: Бронза | AM8: Всего сдано | AO8: Не сдано | AQ8: Кол-во рез-в общее | AR8: Золото | AT8: Серебро | AV8: Бронза | AX8: Всего сдано | AZ8: Не сдано | BB8: Кол-во рез-в общее | BC8: Золото | BE8: Серебро | BG8: Бронза | BI8: Всего сдано | BK8: Не сдано | BM8: Кол-во рез-в общее | BN8: Золото | BP8: Серебро | BR8: Бронза | BT8: Всего сдано | BV8: Не сдано | BX8: Кол-во рез-в общее | BY8: Золото | CA8: Серебро | CC8: Бронза | CE8: Всего сдано | CG8: Не сдано | CI8: Кол-во рез-в общее | CJ8: Золото | CL8: Серебро | CN8: Бронза | CP8: Всего сдано | CR8: Не сдано | CT8: Кол-во рез-в общее | CU8: Золото | CW8: Серебро | CY8: Бронза | DA8: Всего сдано | DC8: Не сдано | DE8: Кол-во рез-в общее | DF8: Золото | DH8: Серебро | DJ8: Бронза | DL8: Всего сдано | DN8: Не сдано | DP8: Кол-во рез-в общее | DQ8: Золото | DS8: Серебро | DU8: Бронза | DW8: Всего сдано | DY8: Не сдано | EA8: Кол-во рез-в общее | EB8: Золото | ED8: Серебро | EF8: Бронза | EH8: Всего сдано | EJ8: Не сдано
K9: Кол-во | L9: % от кол. результ. | M9: Кол-во | N9: % от кол. результ. | O9: Кол-во | P9: % от кол. результ. | Q9: Кол-во | R9: % от кол. результ. | S9: Кол-во | T9: % от кол. результ. | V9: Кол-во | W9: % от кол. рез-в | X9: Кол-во | Y9: % от кол. рез-в | Z9: Кол-во | AA9: % от кол. рез-в | AB9: Кол-во | AC9: % от кол. рез-в | AD9: Кол-во | AE9: % от кол. рез-в | AG9: Кол-во | AH9: % от кол. участв-x | AI9: Кол-во | AJ9: % от кол. участв-x | AK9: Кол-во | AL9: % от кол. участв-x | AM9: Кол-во | AN9: % от кол. участв-x | AO9: Кол-во | AP9: % от кол. участв-x | AR9: Кол-во | AS9: % от кол. участв-x | AT9: Кол-во | AU9: % от кол. участв-x | AV9: Кол-во | AW9: % от кол. участв-x | AX9: Кол-во | AY9: % от кол. участв-x | AZ9: Кол-во | BA9: % от кол. участв-x | BC9: Кол-во | BD9: % от кол. участв-x | BE9: Кол-во | BF9: % от кол. участв-x | BG9: Кол-во | BH9: % от кол. участв-x | BI9: Кол-во | BJ9: % от кол. участв-x | BK9: Кол-во | BL9: % от кол. участв-x | BN9: Кол-во | BO9: % от кол. участв-x | BP9: Кол-во | BQ9: % от кол. участв-x | BR9: Кол-во | BS9: % от кол. участв-x | BT9: Кол-во | BU9: % от кол. участв-x | BV9: Кол-во | BW9: % от кол. участв-x | BY9: Кол-во | BZ9: % от кол. участв-x | CA9: Кол-во | CB9: % от кол. участв-x | CC9: Кол-во | CD9: % от кол. участв-x | CE9: Кол-во | CF9: % от кол. участв-x | CG9: Кол-во | CH9: % от кол. участв-x | CJ9: Кол-во | CK9: % от кол. участв-x | CL9: Кол-во | CM9: % от кол. участв-x | CN9: Кол-во | CO9: % от кол. участв-x | CP9: Кол-во | CQ9: % от кол. участв-x | CR9: Кол-во | CS9: % от кол. участв-x | CU9: Кол-во | CV9: % от кол. участв-x | CW9: Кол-во | CX9: % от кол. участв-x | CY9: Кол-во | CZ9: % от кол. участв-x | DA9: Кол-во | DB9: % от кол. участв-x | DC9: Кол-во | DD9: % от кол. участв-x | DF9: Кол-во | DG9: % от кол. участв-x | DH9: Кол-во | DI9: % от кол. участв-x | DJ9: Кол-во | DK9: % от кол. участв-x | DL9: Кол-во | DM9: % от кол. участв-x | DN9: Кол-во | DO9: % от кол. участв-x | DQ9: Кол-во | DR9: % от кол. участв-x | DS9: Кол-во | DT9: % от кол. участв-x | DU9: Кол-во | DV9: % от кол. участв-x | DW9: Кол-во | DX9: % от кол. участв-x | DY9: Кол-во | DZ9: % от кол. участв-x | EB9: Кол-во | EC9: % от кол. участв-x | ED9: Кол-во | EE9: % от кол. участв-x | EF9: Кол-во | EG9: % от кол. участв-x | EH9: Кол-во | EI9: % от кол. участв-x | EJ9: Кол-во | EK9: % от кол. участв-x
A10: 1 ступень | B10: м | C10: ='Ввод данных'!C10 -> 3 | D10: =IF((C10+C11)=0,"",C10/(C10+C11)) -> 42.9% | E10: ='Ввод данных'!D10 -> 3 | F10: =IF(C10=0,"",E10/C10) -> 100.0% | G10: ='Ввод данных'!E10 -> 0 | H10: =IF(C10=0,"",G10/C10) -> 0.0% | I10: ='Ввод данных'!BZ10 -> 11 | J10: =SUMIF(Кол_рез_общее,"Кол-во рез-в общее",U10:EK10) -> 33 | K10: ='Ввод данных'!BT10 -> 0 | L10: =IF(K10=0,"",K10/J10) ->  | M10: ='Ввод данных'!BU10 -> 9 | N10: =IF(M10=0,"",M10/J10) -> 27.3% | O10: ='Ввод данных'!BV10 -> 24 | P10: =IF(O10=0,"",O10/J10) -> 72.7% | Q10: ='Ввод данных'!BW10 -> 33 | R10: =IF(Q10=0,"",Q10/J10) -> 100.0% | S10: ='Ввод данных'!BX10 -> 0 | T10: =IF(S10=0,"",S10/J10) ->  | U10: ='Ввод данных'!K10 -> 3 | V10: ='Ввод данных'!F10 -> 0 | W10: =IF(U10=0,"",V10/U10) -> 0.0% | X10: ='Ввод данных'!G10 -> 0 | Y10: =IF(X10=0,"",X10/U10) ->  | Z10: ='Ввод данных'!H10 -> 3 | AA10: =IF(Z10=0,"",Z10/U10) -> 100.0% | AB10: ='Ввод данных'!I10 -> 3 | AC10: =IF(AB10=0,"",AB10/U10) -> 100.0% | AD10: ='Ввод данных'!J10 -> 0 | AE10: =IF(AB10=0,"",AD10/U10) -> 0.0% | AF10: ='Ввод данных'!Q10 -> 3 | AG10: ='Ввод данных'!L10 -> 0 | AH10: =IF(AG10=0,"",AG10/AF10) ->  | AI10: ='Ввод данных'!M10 -> 2 | AJ10: =IF(AI10=0,"",AI10/AF10) -> 66.7% | AK10: ='Ввод данных'!N10 -> 1 | AL10: =IF(AK10=0,"",AK10/AF10) -> 33.3% | AM10: ='Ввод данных'!O10 -> 3 | AN10: =IF(AM10=0,"",AM10/AF10) -> 100.0% | AO10: ='Ввод данных'!P10 -> 0 | AP10: =IF(AM10=0,"",AO10/AF10) -> 0.0% | AQ10: ='Ввод данных'!W10 -> 3 | AR10: ='Ввод данных'!R10 -> 0 | AS10: =IF(AR10=0,"",AR10/AQ10) ->  | AT10: ='Ввод данных'!S10 -> 1 | AU10: =IF(AT10=0,"",AT10/AQ10) -> 33.3% | AV10: ='Ввод данных'!T10 -> 2 | AW10: =IF(AV10=0,"",AV10/AQ10) -> 66.7% | AX10: ='Ввод данных'!U10 -> 3 | AY10: =IF(AX10=0,"",AX10/AQ10) -> 100.0% | AZ10: ='Ввод данных'!V10 -> 0 | BA10: =IF(AX10=0,"",AZ10/AQ10) -> 0.0% | BB10: ='Ввод данных'!AC10 -> 3 | BC10: ='Ввод данных'!X10 -> 0 | BD10: =IF(BC10=0,"",BC10/BB10) ->  | BE10: ='Ввод данных'!Y10 -> 1 | BF10: =IF(BE10=0,"",BE10/BB10) -> 33.3% | BG10: ='Ввод данных'!Z10 -> 2 | BH10: =IF(BG10=0,"",BG10/BB10) -> 66.7% | BI10: =BC10+BE10+BG10 -> 3 | BJ10: =IF(BI10=0,"",BI10/BB10) -> 100.0% | BK10: =IF(BI10=0,0,E10-BI10) -> 0 | BL10: =IF(BI10=0,"",BK10/BB10) -> 0.0% | BM10: ='Ввод данных'!AI10 -> 3 | BN10: ='Ввод данных'!AD10 -> 0 | BO10: =IF(BN10=0,"",BN10/BM10) ->  | BP10: ='Ввод данных'!AE10 -> 3 | BQ10: =IF(BP10=0,"",BP10/BM10) -> 100.0% | BR10: ='Ввод данных'!AF10 -> 0 | BS10: =IF(BR10=0,"",BR10/BM10) ->  | BT10: =BN10+BP10+BR10 -> 3 | BU10: =IF(BT10=0,"",BT10/BM10) -> 100.0% | BV10: =IF(BT10=0,0,E10-BT10) -> 0 | BW10: =IF(BT10=0,"",BV10/BM10) -> 0.0% | BX10: ='Ввод данных'!AO10 -> 3 | BY10: ='Ввод данных'!AJ10 -> 0 | BZ10: =IF(BY10=0,"",BY10/BX10) ->  | CA10: ='Ввод данных'!AK10 -> 1 | CB10: =IF(CA10=0,"",CA10/BX10) -> 33.3% | CC10: ='Ввод данных'!AL10 -> 2 | CD10: =IF(CC10=0,"",CC10/BX10) -> 66.7% | CE10: ='Ввод данных'!AM10 -> 3 | CF10: =IF(CE10=0,"",CE10/BX10) -> 100.0% | CG10: ='Ввод данных'!AN10 -> 0 | CH10: =IF(CE10=0,"",CG10/BX10) -> 0.0% | CI10: ='Ввод данных'!AU10 -> 3 | CJ10: ='Ввод данных'!AP10 -> 0 | CK10: =IF(CJ10=0,"",CJ10/CI10) ->  | CL10: ='Ввод данных'!AQ10 -> 1 | CM10: =IF(CL10=0,"",CL10/CI10) -> 33.3% | CN10: ='Ввод данных'!AR10 -> 2 | CO10: =IF(CN10=0,"",CN10/CI10) -> 66.7% | CP10: ='Ввод данных'!AS10 -> 3 | CQ10: =IF(CP10=0,"",CP10/CI10) -> 100.0% | CR10: ='Ввод данных'!AT10 -> 0 | CS10: =IF(CP10=0,"",CR10/CI10) -> 0.0% | CT10: ='Ввод данных'!BA10 -> 3 | CU10: ='Ввод данных'!AV10 -> 0 | CV10: =IF(CU10=0,"",CU10/CT10) ->  | CW10: ='Ввод данных'!AW10 -> 0 | CX10: =IF(CW10=0,"",CW10/CT10) ->  | CY10: ='Ввод данных'!AX10 -> 3 | CZ10: =IF(CY10=0,"",CY10/CT10) -> 100.0% | DA10: ='Ввод данных'!AY10 -> 3 | DB10: =IF(DA10=0,"",DA10/CT10) -> 100.0% | DC10: ='Ввод данных'!AZ10 -> 0 | DD10: =IF(DA10=0,"",DC10/CT10) -> 0.0% | DE10: ='Ввод данных'!BG10 -> 3 | DF10: ='Ввод данных'!BB10 -> 0 | DG10: =IF(DF10=0,"",DF10/DE10) ->  | DH10: ='Ввод данных'!BC10 -> 0 | DI10: =IF(DH10=0,"",DH10/DE10) ->  | DJ10: ='Ввод данных'!BD10 -> 3 | DK10: =IF(DJ10=0,"",DJ10/DE10) -> 100.0% | DL10: ='Ввод данных'!BE10 -> 3 | DM10: =IF(DL10=0,"",DL10/DE10) -> 100.0% | DN10: ='Ввод данных'!BF10 -> 0 | DO10: =IF(DL10=0,"",DN10/DE10) -> 0.0% | DP10: ='Ввод данных'!BM10 -> 3 | DQ10: ='Ввод данных'!BH10 -> 0 | DR10: =IF(DQ10=0,"",DQ10/DP10) ->  | DS10: ='Ввод данных'!BI10 -> 0 | DT10: =IF(DS10=0,"",DS10/DP10) ->  | DU10: ='Ввод данных'!BJ10 -> 3 | DV10: =IF(DU10=0,"",DU10/DP10) -> 100.0% | DW10: ='Ввод данных'!BK10 -> 3 | DX10: =IF(DW10=0,"",DW10/DP10) -> 100.0% | DY10: ='Ввод данных'!BL10 -> 0 | DZ10: =IF(DW10=0,"",DY10/DP10) -> 0.0% | EA10: ='Ввод данных'!BS10 -> 3 | EB10: ='Ввод данных'!BN10 -> 0 | EC10: =IF(EB10=0,"",EB10/EA10) ->  | ED10: ='Ввод данных'!BO10 -> 0 | EE10: =IF(ED10=0,"",ED10/EA10) ->  | EF10: ='Ввод данных'!BP10 -> 3 | EG10: =IF(EF10=0,"",EF10/EA10) -> 100.0% | EH10: ='Ввод данных'!BQ10 -> 3 | EI10: =IF(EH10=0,"",EH10/EA10) -> 100.0% | EJ10: ='Ввод данных'!BR10 -> 0 | EK10: =IF(EH10=0,"",EJ10/EA10) -> 0.0%
A11: 6 - 8 лет | B11: д | C11: ='Ввод данных'!C11 -> 4 | D11: =IF((C10+C11)=0,"",C11/(C10+C11)) -> 57.1% | E11: ='Ввод данных'!D11 -> 4 | F11: 100.0% | G11: ='Ввод данных'!E11 -> 0 | H11: =IF(C11=0,"",G11/C11) -> 0.0% | I11: ='Ввод данных'!BZ11 -> 11 | J11: 44 | K11: ='Ввод данных'!BT11 -> 1 | L11: =IF(K11=0,"",K11/J11) -> 2.3% | M11: ='Ввод данных'!BU11 -> 10 | N11: =IF(M11=0,"",M11/J11) -> 22.7% | O11: ='Ввод данных'!BV11 -> 33 | P11: =IF(O11=0,"",O11/J11) -> 75.0% | Q11: ='Ввод данных'!BW11 -> 44 | R11: =IF(Q11=0,"",Q11/J11) -> 100.0% | S11: ='Ввод данных'!BX11 -> 0 | T11: =IF(S11=0,"",S11/J11) ->  | U11: ='Ввод данных'!K11 -> 4 | V11: ='Ввод данных'!F11 -> 0 | W11: =IF(U11=0,"",V11/U11) -> 0.0% | X11: ='Ввод данных'!G11 -> 1 | Y11: =IF(X11=0,"",X11/U11) -> 25.0% | Z11: ='Ввод данных'!H11 -> 3 | AA11: =IF(Z11=0,"",Z11/U11) -> 75.0% | AB11: ='Ввод данных'!I11 -> 4 | AC11: =IF(AB11=0,"",AB11/U11) -> 100.0% | AD11: ='Ввод данных'!J11 -> 0 | AE11: =IF(AB11=0,"",AD11/U11) -> 0.0% | AF11: ='Ввод данных'!Q11 -> 4 | AG11: ='Ввод данных'!L11 -> 0 | AH11: =IF(AG11=0,"",AG11/AF11) ->  | AI11: ='Ввод данных'!M11 -> 1 | AJ11: =IF(AI11=0,"",AI11/AF11) -> 25.0% | AK11: ='Ввод данных'!N11 -> 3 | AL11: =IF(AK11=0,"",AK11/AF11) -> 75.0% | AM11: ='Ввод данных'!O11 -> 4 | AN11: =IF(AM11=0,"",AM11/AF11) -> 100.0% | AO11: ='Ввод данных'!P11 -> 0 | AP11: =IF(AM11=0,"",AO11/AF11) -> 0.0% | AQ11: ='Ввод данных'!W11 -> 4 | AR11: ='Ввод данных'!R11 -> 1 | AS11: =IF(AR11=0,"",AR11/AQ11) -> 25.0% | AT11: ='Ввод данных'!S11 -> 1 | AU11: =IF(AT11=0,"",AT11/AQ11) -> 25.0% | AV11: ='Ввод данных'!T11 -> 2 | AW11: =IF(AV11=0,"",AV11/AQ11) -> 50.0% | AX11: ='Ввод данных'!U11 -> 4 | AY11: =IF(AX11=0,"",AX11/AQ11) -> 100.0% | AZ11: ='Ввод данных'!V11 -> 0 | BA11: =IF(AX11=0,"",AZ11/AQ11) -> 0.0% | BB11: ='Ввод данных'!AC11 -> 4 | BC11: ='Ввод данных'!X11 -> 0 | BD11: =IF(BC11=0,"",BC11/BB11) ->  | BE11: ='Ввод данных'!Y11 -> 1 | BF11: =IF(BE11=0,"",BE11/BB11) -> 25.0% | BG11: ='Ввод данных'!Z11 -> 3 | BH11: =IF(BG11=0,"",BG11/BB11) -> 75.0% | BI11: 4 | BJ11: =IF(BI11=0,"",BI11/BB11) -> 100.0% | BK11: 0 | BL11: =IF(BI11=0,"",BK11/BB11) -> 0.0% | BM11: ='Ввод данных'!AI11 -> 4 | BN11: ='Ввод данных'!AD11 -> 0 | BO11: =IF(BN11=0,"",BN11/BM11) ->  | BP11: ='Ввод данных'!AE11 -> 3 | BQ11: =IF(BP11=0,"",BP11/BM11) -> 75.0% | BR11: ='Ввод данных'!AF11 -> 1 | BS11: =IF(BR11=0,"",BR11/BM11) -> 25.0% | BT11: 4 | BU11: =IF(BT11=0,"",BT11/BM11) -> 100.0% | BV11: 0 | BW11: =IF(BT11=0,"",BV11/BM11) -> 0.0% | BX11: ='Ввод данных'!AO11 -> 4 | BY11: ='Ввод данных'!AJ11 -> 0 | BZ11: =IF(BY11=0,"",BY11/BX11) ->  | CA11: ='Ввод данных'!AK11 -> 1 | CB11: =IF(CA11=0,"",CA11/BX11) -> 25.0% | CC11: ='Ввод данных'!AL11 -> 3 | CD11: =IF(CC11=0,"",CC11/BX11) -> 75.0% | CE11: ='Ввод данных'!AM11 -> 4 | CF11: =IF(CE11=0,"",CE11/BX11) -> 100.0% | CG11: ='Ввод данных'!AN11 -> 0 | CH11: =IF(CE11=0,"",CG11/BX11) -> 0.0% | CI11: ='Ввод данных'!AU11 -> 4 | CJ11: ='Ввод данных'!AP11 -> 0 | CK11: =IF(CJ11=0,"",CJ11/CI11) ->  | CL11: ='Ввод данных'!AQ11 -> 1 | CM11: =IF(CL11=0,"",CL11/CI11) -> 25.0% | CN11: ='Ввод данных'!AR11 -> 3 | CO11: =IF(CN11=0,"",CN11/CI11) -> 75.0% | CP11: ='Ввод данных'!AS11 -> 4 | CQ11: =IF(CP11=0,"",CP11/CI11) -> 100.0% | CR11: ='Ввод данных'!AT11 -> 0 | CS11: =IF(CP11=0,"",CR11/CI11) -> 0.0% | CT11: ='Ввод данных'!BA11 -> 4 | CU11: ='Ввод данных'!AV11 -> 0 | CV11: =IF(CU11=0,"",CU11/CT11) ->  | CW11: ='Ввод данных'!AW11 -> 1 | CX11: =IF(CW11=0,"",CW11/CT11) -> 25.0% | CY11: ='Ввод данных'!AX11 -> 3 | CZ11: =IF(CY11=0,"",CY11/CT11) -> 75.0% | DA11: ='Ввод данных'!AY11 -> 4 | DB11: =IF(DA11=0,"",DA11/CT11) -> 100.0% | DC11: ='Ввод данных'!AZ11 -> 0 | DD11: =IF(DA11=0,"",DC11/CT11) -> 0.0% | DE11: ='Ввод данных'!BG11 -> 4 | DF11: ='Ввод данных'!BB11 -> 0 | DG11: =IF(DF11=0,"",DF11/DE11) ->  | DH11: ='Ввод данных'!BC11 -> 0 | DI11: =IF(DH11=0,"",DH11/DE11) ->  | DJ11: ='Ввод данных'!BD11 -> 4 | DK11: =IF(DJ11=0,"",DJ11/DE11) -> 100.0% | DL11: ='Ввод данных'!BE11 -> 4 | DM11: =IF(DL11=0,"",DL11/DE11) -> 100.0% | DN11: ='Ввод данных'!BF11 -> 0 | DO11: =IF(DL11=0,"",DN11/DE11) -> 0.0% | DP11: ='Ввод данных'!BM11 -> 4 | DQ11: ='Ввод данных'!BH11 -> 0 | DR11: =IF(DQ11=0,"",DQ11/DP11) ->  | DS11: ='Ввод данных'!BI11 -> 0 | DT11: =IF(DS11=0,"",DS11/DP11) ->  | DU11: ='Ввод данных'!BJ11 -> 4 | DV11: =IF(DU11=0,"",DU11/DP11) -> 100.0% | DW11: ='Ввод данных'!BK11 -> 4 | DX11: =IF(DW11=0,"",DW11/DP11) -> 100.0% | DY11: ='Ввод данных'!BL11 -> 0 | DZ11: =IF(DW11=0,"",DY11/DP11) -> 0.0% | EA11: ='Ввод данных'!BS11 -> 4 | EB11: ='Ввод данных'!BN11 -> 0 | EC11: =IF(EB11=0,"",EB11/EA11) ->  | ED11: ='Ввод данных'!BO11 -> 0 | EE11: =IF(ED11=0,"",ED11/EA11) ->  | EF11: ='Ввод данных'!BP11 -> 4 | EG11: =IF(EF11=0,"",EF11/EA11) -> 100.0% | EH11: ='Ввод данных'!BQ11 -> 4 | EI11: =IF(EH11=0,"",EH11/EA11) -> 100.0% | EJ11: ='Ввод данных'!BR11 -> 0 | EK11: =IF(EH11=0,"",EJ11/EA11) -> 0.0%
A12: 2 ступень | B12: м | C12: ='Ввод данных'!C12 -> 3 | D12: =IF((C12+C13)=0,"",C12/(C12+C13)) -> 37.5% | E12: ='Ввод данных'!D12 -> 3 | F12: 100.0% | G12: ='Ввод данных'!E12 -> 0 | H12: 0.0% | I12: ='Ввод данных'!BZ12 -> 11 | J12: 33 | K12: ='Ввод данных'!BT12 -> 0 | M12: ='Ввод данных'!BU12 -> 9 | N12: 27.3% | O12: ='Ввод данных'!BV12 -> 24 | P12: 72.7% | Q12: ='Ввод данных'!BW12 -> 33 | R12: 100.0% | S12: ='Ввод данных'!BX12 -> 0 | U12: ='Ввод данных'!K12 -> 3 | V12: ='Ввод данных'!F12 -> 0 | W12: 0.0% | X12: ='Ввод данных'!G12 -> 1 | Y12: 33.3% | Z12: ='Ввод данных'!H12 -> 2 | AA12: 66.7% | AB12: ='Ввод данных'!I12 -> 3 | AC12: 100.0% | AD12: ='Ввод данных'!J12 -> 0 | AE12: 0.0% | AF12: ='Ввод данных'!Q12 -> 3 | AG12: ='Ввод данных'!L12 -> 0 | AI12: ='Ввод данных'!M12 -> 1 | AJ12: 33.3% | AK12: ='Ввод данных'!N12 -> 2 | AL12: 66.7% | AM12: ='Ввод данных'!O12 -> 3 | AN12: 100.0% | AO12: ='Ввод данных'!P12 -> 0 | AP12: 0.0% | AQ12: ='Ввод данных'!W12 -> 3 | AR12: ='Ввод данных'!R12 -> 0 | AT12: ='Ввод данных'!S12 -> 1 | AU12: 33.3% | AV12: ='Ввод данных'!T12 -> 2 | AW12: 66.7% | AX12: ='Ввод данных'!U12 -> 3 | AY12: 100.0% | AZ12: ='Ввод данных'!V12 -> 0 | BA12: 0.0% | BB12: ='Ввод данных'!AC12 -> 3 | BC12: ='Ввод данных'!X12 -> 0 | BE12: ='Ввод данных'!Y12 -> 1 | BF12: 33.3% | BG12: ='Ввод данных'!Z12 -> 2 | BH12: 66.7% | BI12: 3 | BJ12: 100.0% | BK12: 0 | BL12: 0.0% | BM12: ='Ввод данных'!AI12 -> 3 | BN12: ='Ввод данных'!AD12 -> 0 | BP12: ='Ввод данных'!AE12 -> 1 | BQ12: 33.3% | BR12: ='Ввод данных'!AF12 -> 2 | BS12: 66.7% | BT12: 3 | BU12: 100.0% | BV12: 0 | BW12: 0.0% | BX12: ='Ввод данных'!AO12 -> 3 | BY12: ='Ввод данных'!AJ12 -> 0 | CA12: ='Ввод данных'!AK12 -> 1 | CB12: 33.3% | CC12: ='Ввод данных'!AL12 -> 2 | CD12: 66.7% | CE12: ='Ввод данных'!AM12 -> 3 | CF12: 100.0% | CG12: ='Ввод данных'!AN12 -> 0 | CH12: 0.0% | CI12: ='Ввод данных'!AU12 -> 3 | CJ12: ='Ввод данных'!AP12 -> 0 | CL12: ='Ввод данных'!AQ12 -> 1 | CM12: 33.3% | CN12: ='Ввод данных'!AR12 -> 2 | CO12: 66.7% | CP12: ='Ввод данных'!AS12 -> 3 | CQ12: 100.0% | CR12: ='Ввод данных'!AT12 -> 0 | CS12: 0.0% | CT12: ='Ввод данных'!BA12 -> 3 | CU12: ='Ввод данных'!AV12 -> 0 | CW12: ='Ввод данных'!AW12 -> 1 | CX12: 33.3% | CY12: ='Ввод данных'!AX12 -> 2 | CZ12: 66.7% | DA12: ='Ввод данных'!AY12 -> 3 | DB12: 100.0% | DC12: ='Ввод данных'!AZ12 -> 0 | DD12: 0.0% | DE12: ='Ввод данных'!BG12 -> 3 | DF12: ='Ввод данных'!BB12 -> 0 | DH12: ='Ввод данных'!BC12 -> 0 | DJ12: ='Ввод данных'!BD12 -> 3 | DK12: 100.0% | DL12: ='Ввод данных'!BE12 -> 3 | DM12: 100.0% | DN12: ='Ввод данных'!BF12 -> 0 | DO12: 0.0% | DP12: ='Ввод данных'!BM12 -> 3 | DQ12: ='Ввод данных'!BH12 -> 0 | DS12: ='Ввод данных'!BI12 -> 1 | DT12: 33.3% | DU12: ='Ввод данных'!BJ12 -> 2 | DV12: 66.7% | DW12: ='Ввод данных'!BK12 -> 3 | DX12: 100.0% | DY12: ='Ввод данных'!BL12 -> 0 | DZ12: 0.0% | EA12: ='Ввод данных'!BS12 -> 3 | EB12: ='Ввод данных'!BN12 -> 0 | ED12: ='Ввод данных'!BO12 -> 0 | EF12: ='Ввод данных'!BP12 -> 3 | EG12: 100.0% | EH12: ='Ввод данных'!BQ12 -> 3 | EI12: 100.0% | EJ12: ='Ввод данных'!BR12 -> 0 | EK12: 0.0%
A13: 9 - 10 лет | B13: д | C13: ='Ввод данных'!C13 -> 5 | D13: =IF((C12+C13)=0,"",C13/(C12+C13)) -> 62.5% | E13: ='Ввод данных'!D13 -> 5 | F13: 100.0% | G13: ='Ввод данных'!E13 -> 0 | H13: 0.0% | I13: ='Ввод данных'!BZ13 -> 11 | J13: 55 | K13: ='Ввод данных'!BT13 -> 1 | L13: 1.8% | M13: ='Ввод данных'!BU13 -> 24 | N13: 43.6% | O13: ='Ввод данных'!BV13 -> 30 | P13: 54.5% | Q13: ='Ввод данных'!BW13 -> 55 | R13: 100.0% | S13: ='Ввод данных'!BX13 -> 0 | U13: ='Ввод данных'!K13 -> 5 | V13: ='Ввод данных'!F13 -> 0 | W13: 0.0% | X13: ='Ввод данных'!G13 -> 1 | Y13: 20.0% | Z13: ='Ввод данных'!H13 -> 4 | AA13: 80.0% | AB13: ='Ввод данных'!I13 -> 5 | AC13: 100.0% | AD13: ='Ввод данных'!J13 -> 0 | AE13: 0.0% | AF13: ='Ввод данных'!Q13 -> 5 | AG13: ='Ввод данных'!L13 -> 0 | AI13: ='Ввод данных'!M13 -> 1 | AJ13: 20.0% | AK13: ='Ввод данных'!N13 -> 4 | AL13: 80.0% | AM13: ='Ввод данных'!O13 -> 5 | AN13: 100.0% | AO13: ='Ввод данных'!P13 -> 0 | AP13: 0.0% | AQ13: ='Ввод данных'!W13 -> 5 | AR13: ='Ввод данных'!R13 -> 0 | AT13: ='Ввод данных'!S13 -> 1 | AU13: 20.0% | AV13: ='Ввод данных'!T13 -> 4 | AW13: 80.0% | AX13: ='Ввод данных'!U13 -> 5 | AY13: 100.0% | AZ13: ='Ввод данных'!V13 -> 0 | BA13: 0.0% | BB13: ='Ввод данных'!AC13 -> 5 | BC13: ='Ввод данных'!X13 -> 0 | BE13: ='Ввод данных'!Y13 -> 4 | BF13: 80.0% | BG13: ='Ввод данных'!Z13 -> 1 | BH13: 20.0% | BI13: 5 | BJ13: 100.0% | BK13: 0 | BL13: 0.0% | BM13: ='Ввод данных'!AI13 -> 5 | BN13: ='Ввод данных'!AD13 -> 0 | BP13: ='Ввод данных'!AE13 -> 2 | BQ13: 40.0% | BR13: ='Ввод данных'!AF13 -> 3 | BS13: 60.0% | BT13: 5 | BU13: 100.0% | BV13: 0 | BW13: 0.0% | BX13: ='Ввод данных'!AO13 -> 5 | BY13: ='Ввод данных'!AJ13 -> 0 | CA13: ='Ввод данных'!AK13 -> 2 | CB13: 40.0% | CC13: ='Ввод данных'!AL13 -> 3 | CD13: 60.0% | CE13: ='Ввод данных'!AM13 -> 5 | CF13: 100.0% | CG13: ='Ввод данных'!AN13 -> 0 | CH13: 0.0% | CI13: ='Ввод данных'!AU13 -> 5 | CJ13: ='Ввод данных'!AP13 -> 0 | CL13: ='Ввод данных'!AQ13 -> 2 | CM13: 40.0% | CN13: ='Ввод данных'!AR13 -> 3 | CO13: 60.0% | CP13: ='Ввод данных'!AS13 -> 5 | CQ13: 100.0% | CR13: ='Ввод данных'!AT13 -> 0 | CS13: 0.0% | CT13: ='Ввод данных'!BA13 -> 5 | CU13: ='Ввод данных'!AV13 -> 0 | CW13: ='Ввод данных'!AW13 -> 2 | CX13: 40.0% | CY13: ='Ввод данных'!AX13 -> 3 | CZ13: 60.0% | DA13: ='Ввод данных'!AY13 -> 5 | DB13: 100.0% | DC13: ='Ввод данных'!AZ13 -> 0 | DD13: 0.0% | DE13: ='Ввод данных'!BG13 -> 5 | DF13: ='Ввод данных'!BB13 -> 0 | DH13: ='Ввод данных'!BC13 -> 2 | DI13: 40.0% | DJ13: ='Ввод данных'!BD13 -> 3 | DK13: 60.0% | DL13: ='Ввод данных'!BE13 -> 5 | DM13: 100.0% | DN13: ='Ввод данных'!BF13 -> 0 | DO13: 0.0% | DP13: ='Ввод данных'!BM13 -> 5 | DQ13: ='Ввод данных'!BH13 -> 1 | DR13: 20.0% | DS13: ='Ввод данных'!BI13 -> 2 | DT13: 40.0% | DU13: ='Ввод данных'!BJ13 -> 2 | DV13: 40.0% | DW13: ='Ввод данных'!BK13 -> 5 | DX13: 100.0% | DY13: ='Ввод данных'!BL13 -> 0 | DZ13: 0.0% | EA13: ='Ввод данных'!BS13 -> 5 | EB13: ='Ввод данных'!BN13 -> 0 | ED13: ='Ввод данных'!BO13 -> 5 | EE13: 100.0% | EF13: ='Ввод данных'!BP13 -> 0 | EH13: ='Ввод данных'!BQ13 -> 5 | EI13: 100.0% | EJ13: ='Ввод данных'!BR13 -> 0 | EK13: 0.0%
A14: 3 ступень | B14: ю | C14: ='Ввод данных'!C14 -> 6 | D14: =IF((C14+C15)=0,"",C14/(C14+C15)) -> 60.0% | E14: ='Ввод данных'!D14 -> 6 | F14: 100.0% | G14: ='Ввод данных'!E14 -> 0 | H14: 0.0% | I14: ='Ввод данных'!BZ14 -> 11 | J14: 66 | K14: ='Ввод данных'!BT14 -> 6 | L14: 9.1% | M14: ='Ввод данных'!BU14 -> 24 | N14: 36.4% | O14: ='Ввод данных'!BV14 -> 36 | P14: 54.5% | Q14: ='Ввод данных'!BW14 -> 66 | R14: 100.0% | S14: ='Ввод данных'!BX14 -> 0 | U14: ='Ввод данных'!K14 -> 6 | V14: ='Ввод данных'!F14 -> 0 | W14: 0.0% | X14: ='Ввод данных'!G14 -> 2 | Y14: 33.3% | Z14: ='Ввод данных'!H14 -> 4 | AA14: 66.7% | AB14: ='Ввод данных'!I14 -> 6 | AC14: 100.0% | AD14: ='Ввод данных'!J14 -> 0 | AE14: 0.0% | AF14: ='Ввод данных'!Q14 -> 6 | AG14: ='Ввод данных'!L14 -> 0 | AI14: ='Ввод данных'!M14 -> 2 | AJ14: 33.3% | AK14: ='Ввод данных'!N14 -> 4 | AL14: 66.7% | AM14: ='Ввод данных'!O14 -> 6 | AN14: 100.0% | AO14: ='Ввод данных'!P14 -> 0 | AP14: 0.0% | AQ14: ='Ввод данных'!W14 -> 6 | AR14: ='Ввод данных'!R14 -> 0 | AT14: ='Ввод данных'!S14 -> 2 | AU14: 33.3% | AV14: ='Ввод данных'!T14 -> 4 | AW14: 66.7% | AX14: ='Ввод данных'!U14 -> 6 | AY14: 100.0% | AZ14: ='Ввод данных'!V14 -> 0 | BA14: 0.0% | BB14: ='Ввод данных'!AC14 -> 6 | BC14: ='Ввод данных'!X14 -> 0 | BE14: ='Ввод данных'!Y14 -> 2 | BF14: 33.3% | BG14: ='Ввод данных'!Z14 -> 4 | BH14: 66.7% | BI14: 6 | BJ14: 100.0% | BK14: 0 | BL14: 0.0% | BM14: ='Ввод данных'!AI14 -> 6 | BN14: ='Ввод данных'!AD14 -> 0 | BP14: ='Ввод данных'!AE14 -> 2 | BQ14: 33.3% | BR14: ='Ввод данных'!AF14 -> 4 | BS14: 66.7% | BT14: 6 | BU14: 100.0% | BV14: 0 | BW14: 0.0% | BX14: ='Ввод данных'!AO14 -> 6 | BY14: ='Ввод данных'!AJ14 -> 0 | CA14: ='Ввод данных'!AK14 -> 2 | CB14: 33.3% | CC14: ='Ввод данных'!AL14 -> 4 | CD14: 66.7% | CE14: ='Ввод данных'!AM14 -> 6 | CF14: 100.0% | CG14: ='Ввод данных'!AN14 -> 0 | CH14: 0.0% | CI14: ='Ввод данных'!AU14 -> 6 | CJ14: ='Ввод данных'!AP14 -> 0 | CL14: ='Ввод данных'!AQ14 -> 2 | CM14: 33.3% | CN14: ='Ввод данных'!AR14 -> 4 | CO14: 66.7% | CP14: ='Ввод данных'!AS14 -> 6 | CQ14: 100.0% | CR14: ='Ввод данных'!AT14 -> 0 | CS14: 0.0% | CT14: ='Ввод данных'!BA14 -> 6 | CU14: ='Ввод данных'!AV14 -> 2 | CV14: 33.3% | CW14: ='Ввод данных'!AW14 -> 4 | CX14: 66.7% | CY14: ='Ввод данных'!AX14 -> 0 | DA14: ='Ввод данных'!AY14 -> 6 | DB14: 100.0% | DC14: ='Ввод данных'!AZ14 -> 0 | DD14: 0.0% | DE14: ='Ввод данных'!BG14 -> 6 | DF14: ='Ввод данных'!BB14 -> 0 | DH14: ='Ввод данных'!BC14 -> 2 | DI14: 33.3% | DJ14: ='Ввод данных'!BD14 -> 4 | DK14: 66.7% | DL14: ='Ввод данных'!BE14 -> 6 | DM14: 100.0% | DN14: ='Ввод данных'!BF14 -> 0 | DO14: 0.0% | DP14: ='Ввод данных'!BM14 -> 6 | DQ14: ='Ввод данных'!BH14 -> 2 | DR14: 33.3% | DS14: ='Ввод данных'!BI14 -> 0 | DU14: ='Ввод данных'!BJ14 -> 4 | DV14: 66.7% | DW14: ='Ввод данных'!BK14 -> 6 | DX14: 100.0% | DY14: ='Ввод данных'!BL14 -> 0 | DZ14: 0.0% | EA14: ='Ввод данных'!BS14 -> 6 | EB14: ='Ввод данных'!BN14 -> 2 | EC14: 33.3% | ED14: ='Ввод данных'!BO14 -> 4 | EE14: 66.7% | EF14: ='Ввод данных'!BP14 -> 0 | EH14: ='Ввод данных'!BQ14 -> 6 | EI14: 100.0% | EJ14: ='Ввод данных'!BR14 -> 0 | EK14: 0.0%
A15: 11 - 12 лет | B15: д | C15: ='Ввод данных'!C15 -> 4 | D15: =IF((C14+C15)=0,"",C15/(C14+C15)) -> 40.0% | E15: ='Ввод данных'!D15 -> 3 | F15: 75.0% | G15: ='Ввод данных'!E15 -> 1 | H15: 25.0% | I15: ='Ввод данных'!BZ15 -> 11 | J15: 33 | K15: ='Ввод данных'!BT15 -> 10 | L15: 30.3% | M15: ='Ввод данных'!BU15 -> 3 | N15: 9.1% | O15: ='Ввод данных'!BV15 -> 20 | P15: 60.6% | Q15: ='Ввод данных'!BW15 -> 33 | R15: 100.0% | S15: ='Ввод данных'!BX15 -> 0 | U15: ='Ввод данных'!K15 -> 3 | V15: ='Ввод данных'!F15 -> 1 | W15: 33.3% | X15: ='Ввод данных'!G15 -> 0 | Z15: ='Ввод данных'!H15 -> 2 | AA15: 66.7% | AB15: ='Ввод данных'!I15 -> 3 | AC15: 100.0% | AD15: ='Ввод данных'!J15 -> 0 | AE15: 0.0% | AF15: ='Ввод данных'!Q15 -> 3 | AG15: ='Ввод данных'!L15 -> 1 | AH15: 33.3% | AI15: ='Ввод данных'!M15 -> 0 | AK15: ='Ввод данных'!N15 -> 2 | AL15: 66.7% | AM15: ='Ввод данных'!O15 -> 3 | AN15: 100.0% | AO15: ='Ввод данных'!P15 -> 0 | AP15: 0.0% | AQ15: ='Ввод данных'!W15 -> 3 | AR15: ='Ввод данных'!R15 -> 1 | AS15: 33.3% | AT15: ='Ввод данных'!S15 -> 0 | AV15: ='Ввод данных'!T15 -> 2 | AW15: 66.7% | AX15: ='Ввод данных'!U15 -> 3 | AY15: 100.0% | AZ15: ='Ввод данных'!V15 -> 0 | BA15: 0.0% | BB15: ='Ввод данных'!AC15 -> 3 | BC15: ='Ввод данных'!X15 -> 1 | BD15: 33.3% | BE15: ='Ввод данных'!Y15 -> 0 | BG15: ='Ввод данных'!Z15 -> 2 | BH15: 66.7% | BI15: 3 | BJ15: 100.0% | BK15: 0 | BL15: 0.0% | BM15: ='Ввод данных'!AI15 -> 3 | BN15: ='Ввод данных'!AD15 -> 1 | BO15: 33.3% | BP15: ='Ввод данных'!AE15 -> 0 | BR15: ='Ввод данных'!AF15 -> 2 | BS15: 66.7% | BT15: 3 | BU15: 100.0% | BV15: 0 | BW15: 0.0% | BX15: ='Ввод данных'!AO15 -> 3 | BY15: ='Ввод данных'!AJ15 -> 1 | BZ15: 33.3% | CA15: ='Ввод данных'!AK15 -> 0 | CC15: ='Ввод данных'!AL15 -> 2 | CD15: 66.7% | CE15: ='Ввод данных'!AM15 -> 3 | CF15: 100.0% | CG15: ='Ввод данных'!AN15 -> 0 | CH15: 0.0% | CI15: ='Ввод данных'!AU15 -> 3 | CJ15: ='Ввод данных'!AP15 -> 0 | CL15: ='Ввод данных'!AQ15 -> 1 | CM15: 33.3% | CN15: ='Ввод данных'!AR15 -> 2 | CO15: 66.7% | CP15: ='Ввод данных'!AS15 -> 3 | CQ15: 100.0% | CR15: ='Ввод данных'!AT15 -> 0 | CS15: 0.0% | CT15: ='Ввод данных'!BA15 -> 3 | CU15: ='Ввод данных'!AV15 -> 1 | CV15: 33.3% | CW15: ='Ввод данных'!AW15 -> 0 | CY15: ='Ввод данных'!AX15 -> 2 | CZ15: 66.7% | DA15: ='Ввод данных'!AY15 -> 3 | DB15: 100.0% | DC15: ='Ввод данных'!AZ15 -> 0 | DD15: 0.0% | DE15: ='Ввод данных'!BG15 -> 3 | DF15: ='Ввод данных'!BB15 -> 1 | DG15: 33.3% | DH15: ='Ввод данных'!BC15 -> 0 | DJ15: ='Ввод данных'!BD15 -> 2 | DK15: 66.7% | DL15: ='Ввод данных'!BE15 -> 3 | DM15: 100.0% | DN15: ='Ввод данных'!BF15 -> 0 | DO15: 0.0% | DP15: ='Ввод данных'!BM15 -> 3 | DQ15: ='Ввод данных'!BH15 -> 1 | DR15: 33.3% | DS15: ='Ввод данных'!BI15 -> 0 | DU15: ='Ввод данных'!BJ15 -> 2 | DV15: 66.7% | DW15: ='Ввод данных'!BK15 -> 3 | DX15: 100.0% | DY15: ='Ввод данных'!BL15 -> 0 | DZ15: 0.0% | EA15: ='Ввод данных'!BS15 -> 3 | EB15: ='Ввод данных'!BN15 -> 1 | EC15: 33.3% | ED15: ='Ввод данных'!BO15 -> 2 | EE15: 66.7% | EF15: ='Ввод данных'!BP15 -> 0 | EH15: ='Ввод данных'!BQ15 -> 3 | EI15: 100.0% | EJ15: ='Ввод данных'!BR15 -> 0 | EK15: 0.0%
A16: 4 ступень | B16: ю | C16: ='Ввод данных'!C16 -> 16 | D16: =IF((C16+C17)=0,"",C16/(C16+C17)) -> 64.0% | E16: ='Ввод данных'!D16 -> 15 | F16: 93.8% | G16: ='Ввод данных'!E16 -> 1 | H16: 6.3% | I16: ='Ввод данных'!BZ16 -> 11 | J16: 165 | K16: ='Ввод данных'!BT16 -> 66 | L16: 40.0% | M16: ='Ввод данных'!BU16 -> 39 | N16: 23.6% | O16: ='Ввод данных'!BV16 -> 60 | P16: 36.4% | Q16: ='Ввод данных'!BW16 -> 165 | R16: 100.0% | S16: ='Ввод данных'!BX16 -> 0 | U16: ='Ввод данных'!K16 -> 15 | V16: ='Ввод данных'!F16 -> 6 | W16: 40.0% | X16: ='Ввод данных'!G16 -> 3 | Y16: 20.0% | Z16: ='Ввод данных'!H16 -> 6 | AA16: 40.0% | AB16: ='Ввод данных'!I16 -> 15 | AC16: 100.0% | AD16: ='Ввод данных'!J16 -> 0 | AE16: 0.0% | AF16: ='Ввод данных'!Q16 -> 15 | AG16: ='Ввод данных'!L16 -> 6 | AH16: 40.0% | AI16: ='Ввод данных'!M16 -> 3 | AJ16: 20.0% | AK16: ='Ввод данных'!N16 -> 6 | AL16: 40.0% | AM16: ='Ввод данных'!O16 -> 15 | AN16: 100.0% | AO16: ='Ввод данных'!P16 -> 0 | AP16: 0.0% | AQ16: ='Ввод данных'!W16 -> 15 | AR16: ='Ввод данных'!R16 -> 6 | AS16: 40.0% | AT16: ='Ввод данных'!S16 -> 3 | AU16: 20.0% | AV16: ='Ввод данных'!T16 -> 6 | AW16: 40.0% | AX16: ='Ввод данных'!U16 -> 15 | AY16: 100.0% | AZ16: ='Ввод данных'!V16 -> 0 | BA16: 0.0% | BB16: ='Ввод данных'!AC16 -> 15 | BC16: ='Ввод данных'!X16 -> 6 | BD16: 40.0% | BE16: ='Ввод данных'!Y16 -> 3 | BF16: 20.0% | BG16: ='Ввод данных'!Z16 -> 6 | BH16: 40.0% | BI16: 15 | BJ16: 100.0% | BK16: 0 | BL16: 0.0% | BM16: ='Ввод данных'!AI16 -> 15 | BN16: ='Ввод данных'!AD16 -> 6 | BO16: 40.0% | BP16: ='Ввод данных'!AE16 -> 3 | BQ16: 20.0% | BR16: ='Ввод данных'!AF16 -> 6 | BS16: 40.0% | BT16: 15 | BU16: 100.0% | BV16: 0 | BW16: 0.0% | BX16: ='Ввод данных'!AO16 -> 15 | BY16: ='Ввод данных'!AJ16 -> 6 | BZ16: 40.0% | CA16: ='Ввод данных'!AK16 -> 3 | CB16: 20.0% | CC16: ='Ввод данных'!AL16 -> 6 | CD16: 40.0% | CE16: ='Ввод данных'!AM16 -> 15 | CF16: 100.0% | CG16: ='Ввод данных'!AN16 -> 0 | CH16: 0.0% | CI16: ='Ввод данных'!AU16 -> 15 | CJ16: ='Ввод данных'!AP16 -> 6 | CK16: 40.0% | CL16: ='Ввод данных'!AQ16 -> 3 | CM16: 20.0% | CN16: ='Ввод данных'!AR16 -> 6 | CO16: 40.0% | CP16: ='Ввод данных'!AS16 -> 15 | CQ16: 100.0% | CR16: ='Ввод данных'!AT16 -> 0 | CS16: 0.0% | CT16: ='Ввод данных'!BA16 -> 15 | CU16: ='Ввод данных'!AV16 -> 6 | CV16: 40.0% | CW16: ='Ввод данных'!AW16 -> 3 | CX16: 20.0% | CY16: ='Ввод данных'!AX16 -> 6 | CZ16: 40.0% | DA16: ='Ввод данных'!AY16 -> 15 | DB16: 100.0% | DC16: ='Ввод данных'!AZ16 -> 0 | DD16: 0.0% | DE16: ='Ввод данных'!BG16 -> 15 | DF16: ='Ввод данных'!BB16 -> 6 | DG16: 40.0% | DH16: ='Ввод данных'!BC16 -> 3 | DI16: 20.0% | DJ16: ='Ввод данных'!BD16 -> 6 | DK16: 40.0% | DL16: ='Ввод данных'!BE16 -> 15 | DM16: 100.0% | DN16: ='Ввод данных'!BF16 -> 0 | DO16: 0.0% | DP16: ='Ввод данных'!BM16 -> 15 | DQ16: ='Ввод данных'!BH16 -> 6 | DR16: 40.0% | DS16: ='Ввод данных'!BI16 -> 6 | DT16: 40.0% | DU16: ='Ввод данных'!BJ16 -> 3 | DV16: 20.0% | DW16: ='Ввод данных'!BK16 -> 15 | DX16: 100.0% | DY16: ='Ввод данных'!BL16 -> 0 | DZ16: 0.0% | EA16: ='Ввод данных'!BS16 -> 15 | EB16: ='Ввод данных'!BN16 -> 6 | EC16: 40.0% | ED16: ='Ввод данных'!BO16 -> 6 | EE16: 40.0% | EF16: ='Ввод данных'!BP16 -> 3 | EG16: 20.0% | EH16: ='Ввод данных'!BQ16 -> 15 | EI16: 100.0% | EJ16: ='Ввод данных'!BR16 -> 0 | EK16: 0.0%
A17: 13 - 15 лет | B17: д | C17: ='Ввод данных'!C17 -> 9 | D17: =IF((C16+C17)=0,"",C17/(C16+C17)) -> 36.0% | E17: ='Ввод данных'!D17 -> 9 | F17: 100.0% | G17: ='Ввод данных'!E17 -> 0 | H17: 0.0% | I17: ='Ввод данных'!BZ17 -> 11 | J17: 99 | K17: ='Ввод данных'!BT17 -> 0 | M17: ='Ввод данных'!BU17 -> 39 | N17: 39.4% | O17: ='Ввод данных'!BV17 -> 60 | P17: 60.6% | Q17: ='Ввод данных'!BW17 -> 99 | R17: 100.0% | S17: ='Ввод данных'!BX17 -> 0 | U17: ='Ввод данных'!K17 -> 9 | V17: ='Ввод данных'!F17 -> 0 | W17: 0.0% | X17: ='Ввод данных'!G17 -> 3 | Y17: 33.3% | Z17: ='Ввод данных'!H17 -> 6 | AA17: 66.7% | AB17: ='Ввод данных'!I17 -> 9 | AC17: 100.0% | AD17: ='Ввод данных'!J17 -> 0 | AE17: 0.0% | AF17: ='Ввод данных'!Q17 -> 9 | AG17: ='Ввод данных'!L17 -> 0 | AI17: ='Ввод данных'!M17 -> 3 | AJ17: 33.3% | AK17: ='Ввод данных'!N17 -> 6 | AL17: 66.7% | AM17: ='Ввод данных'!O17 -> 9 | AN17: 100.0% | AO17: ='Ввод данных'!P17 -> 0 | AP17: 0.0% | AQ17: ='Ввод данных'!W17 -> 9 | AR17: ='Ввод данных'!R17 -> 0 | AT17: ='Ввод данных'!S17 -> 3 | AU17: 33.3% | AV17: ='Ввод данных'!T17 -> 6 | AW17: 66.7% | AX17: ='Ввод данных'!U17 -> 9 | AY17: 100.0% | AZ17: ='Ввод данных'!V17 -> 0 | BA17: 0.0% | BB17: ='Ввод данных'!AC17 -> 9 | BC17: ='Ввод данных'!X17 -> 0 | BE17: ='Ввод данных'!Y17 -> 3 | BF17: 33.3% | BG17: ='Ввод данных'!Z17 -> 6 | BH17: 66.7% | BI17: 9 | BJ17: 100.0% | BK17: 0 | BL17: 0.0% | BM17: ='Ввод данных'!AI17 -> 9 | BN17: ='Ввод данных'!AD17 -> 0 | BP17: ='Ввод данных'!AE17 -> 3 | BQ17: 33.3% | BR17: ='Ввод данных'!AF17 -> 6 | BS17: 66.7% | BT17: 9 | BU17: 100.0% | BV17: 0 | BW17: 0.0% | BX17: ='Ввод данных'!AO17 -> 9 | BY17: ='Ввод данных'!AJ17 -> 0 | CA17: ='Ввод данных'!AK17 -> 3 | CB17: 33.3% | CC17: ='Ввод данных'!AL17 -> 6 | CD17: 66.7% | CE17: ='Ввод данных'!AM17 -> 9 | CF17: 100.0% | CG17: ='Ввод данных'!AN17 -> 0 | CH17: 0.0% | CI17: ='Ввод данных'!AU17 -> 9 | CJ17: ='Ввод данных'!AP17 -> 0 | CL17: ='Ввод данных'!AQ17 -> 3 | CM17: 33.3% | CN17: ='Ввод данных'!AR17 -> 6 | CO17: 66.7% | CP17: ='Ввод данных'!AS17 -> 9 | CQ17: 100.0% | CR17: ='Ввод данных'!AT17 -> 0 | CS17: 0.0% | CT17: ='Ввод данных'!BA17 -> 9 | CU17: ='Ввод данных'!AV17 -> 0 | CW17: ='Ввод данных'!AW17 -> 3 | CX17: 33.3% | CY17: ='Ввод данных'!AX17 -> 6 | CZ17: 66.7% | DA17: ='Ввод данных'!AY17 -> 9 | DB17: 100.0% | DC17: ='Ввод данных'!AZ17 -> 0 | DD17: 0.0% | DE17: ='Ввод данных'!BG17 -> 9 | DF17: ='Ввод данных'!BB17 -> 0 | DH17: ='Ввод данных'!BC17 -> 3 | DI17: 33.3% | DJ17: ='Ввод данных'!BD17 -> 6 | DK17: 66.7% | DL17: ='Ввод данных'!BE17 -> 9 | DM17: 100.0% | DN17: ='Ввод данных'!BF17 -> 0 | DO17: 0.0% | DP17: ='Ввод данных'!BM17 -> 9 | DQ17: ='Ввод данных'!BH17 -> 0 | DS17: ='Ввод данных'!BI17 -> 6 | DT17: 66.7% | DU17: ='Ввод данных'!BJ17 -> 3 | DV17: 33.3% | DW17: ='Ввод данных'!BK17 -> 9 | DX17: 100.0% | DY17: ='Ввод данных'!BL17 -> 0 | DZ17: 0.0% | EA17: ='Ввод данных'!BS17 -> 9 | EB17: ='Ввод данных'!BN17 -> 0 | ED17: ='Ввод данных'!BO17 -> 6 | EE17: 66.7% | EF17: ='Ввод данных'!BP17 -> 3 | EG17: 33.3% | EH17: ='Ввод данных'!BQ17 -> 9 | EI17: 100.0% | EJ17: ='Ввод данных'!BR17 -> 0 | EK17: 0.0%
A18: 5 ступень | B18: ю | C18: ='Ввод данных'!C18 -> 6 | D18: =IF((C18+C19)=0,"",C18/(C18+C19)) -> 50.0% | E18: ='Ввод данных'!D18 -> 6 | F18: 100.0% | G18: ='Ввод данных'!E18 -> 0 | H18: 0.0% | I18: ='Ввод данных'!BZ18 -> 11 | J18: 66 | K18: ='Ввод данных'!BT18 -> 22 | L18: 33.3% | M18: ='Ввод данных'!BU18 -> 10 | N18: 15.2% | O18: ='Ввод данных'!BV18 -> 34 | P18: 51.5% | Q18: ='Ввод данных'!BW18 -> 66 | R18: 100.0% | S18: ='Ввод данных'!BX18 -> 0 | U18: ='Ввод данных'!K18 -> 6 | V18: ='Ввод данных'!F18 -> 2 | W18: 33.3% | X18: ='Ввод данных'!G18 -> 0 | Z18: ='Ввод данных'!H18 -> 4 | AA18: 66.7% | AB18: ='Ввод данных'!I18 -> 6 | AC18: 100.0% | AD18: ='Ввод данных'!J18 -> 0 | AE18: 0.0% | AF18: ='Ввод данных'!Q18 -> 6 | AG18: ='Ввод данных'!L18 -> 2 | AH18: 33.3% | AI18: ='Ввод данных'!M18 -> 0 | AK18: ='Ввод данных'!N18 -> 4 | AL18: 66.7% | AM18: ='Ввод данных'!O18 -> 6 | AN18: 100.0% | AO18: ='Ввод данных'!P18 -> 0 | AP18: 0.0% | AQ18: ='Ввод данных'!W18 -> 6 | AR18: ='Ввод данных'!R18 -> 2 | AS18: 33.3% | AT18: ='Ввод данных'!S18 -> 0 | AV18: ='Ввод данных'!T18 -> 4 | AW18: 66.7% | AX18: ='Ввод данных'!U18 -> 6 | AY18: 100.0% | AZ18: ='Ввод данных'!V18 -> 0 | BA18: 0.0% | BB18: ='Ввод данных'!AC18 -> 6 | BC18: ='Ввод данных'!X18 -> 2 | BD18: 33.3% | BE18: ='Ввод данных'!Y18 -> 0 | BG18: ='Ввод данных'!Z18 -> 4 | BH18: 66.7% | BI18: 6 | BJ18: 100.0% | BK18: 0 | BL18: 0.0% | BM18: ='Ввод данных'!AI18 -> 6 | BN18: ='Ввод данных'!AD18 -> 2 | BO18: 33.3% | BP18: ='Ввод данных'!AE18 -> 0 | BR18: ='Ввод данных'!AF18 -> 4 | BS18: 66.7% | BT18: 6 | BU18: 100.0% | BV18: 0 | BW18: 0.0% | BX18: ='Ввод данных'!AO18 -> 6 | BY18: ='Ввод данных'!AJ18 -> 2 | BZ18: 33.3% | CA18: ='Ввод данных'!AK18 -> 0 | CC18: ='Ввод данных'!AL18 -> 4 | CD18: 66.7% | CE18: ='Ввод данных'!AM18 -> 6 | CF18: 100.0% | CG18: ='Ввод данных'!AN18 -> 0 | CH18: 0.0% | CI18: ='Ввод данных'!AU18 -> 6 | CJ18: ='Ввод данных'!AP18 -> 2 | CK18: 33.3% | CL18: ='Ввод данных'!AQ18 -> 0 | CN18: ='Ввод данных'!AR18 -> 4 | CO18: 66.7% | CP18: ='Ввод данных'!AS18 -> 6 | CQ18: 100.0% | CR18: ='Ввод данных'!AT18 -> 0 | CS18: 0.0% | CT18: ='Ввод данных'!BA18 -> 6 | CU18: ='Ввод данных'!AV18 -> 2 | CV18: 33.3% | CW18: ='Ввод данных'!AW18 -> 0 | CY18: ='Ввод данных'!AX18 -> 4 | CZ18: 66.7% | DA18: ='Ввод данных'!AY18 -> 6 | DB18: 100.0% | DC18: ='Ввод данных'!AZ18 -> 0 | DD18: 0.0% | DE18: ='Ввод данных'!BG18 -> 6 | DF18: ='Ввод данных'!BB18 -> 2 | DG18: 33.3% | DH18: ='Ввод данных'!BC18 -> 2 | DI18: 33.3% | DJ18: ='Ввод данных'!BD18 -> 2 | DK18: 33.3% | DL18: ='Ввод данных'!BE18 -> 6 | DM18: 100.0% | DN18: ='Ввод данных'!BF18 -> 0 | DO18: 0.0% | DP18: ='Ввод данных'!BM18 -> 6 | DQ18: ='Ввод данных'!BH18 -> 2 | DR18: 33.3% | DS18: ='Ввод данных'!BI18 -> 4 | DT18: 66.7% | DU18: ='Ввод данных'!BJ18 -> 0 | DW18: ='Ввод данных'!BK18 -> 6 | DX18: 100.0% | DY18: ='Ввод данных'!BL18 -> 0 | DZ18: 0.0% | EA18: ='Ввод данных'!BS18 -> 6 | EB18: ='Ввод данных'!BN18 -> 2 | EC18: 33.3% | ED18: ='Ввод данных'!BO18 -> 4 | EE18: 66.7% | EF18: ='Ввод данных'!BP18 -> 0 | EH18: ='Ввод данных'!BQ18 -> 6 | EI18: 100.0% | EJ18: ='Ввод данных'!BR18 -> 0 | EK18: 0.0%
A19: 16 - 17 лет | B19: д | C19: ='Ввод данных'!C19 -> 6 | D19: =IF((C18+C19)=0,"",C19/(C18+C19)) -> 50.0% | E19: ='Ввод данных'!D19 -> 6 | F19: 100.0% | G19: ='Ввод данных'!E19 -> 0 | H19: 0.0% | I19: ='Ввод данных'!BZ19 -> 11 | J19: 66 | K19: ='Ввод данных'!BT19 -> 11 | L19: 16.7% | M19: ='Ввод данных'!BU19 -> 11 | N19: 16.7% | O19: ='Ввод данных'!BV19 -> 44 | P19: 66.7% | Q19: ='Ввод данных'!BW19 -> 66 | R19: 100.0% | S19: ='Ввод данных'!BX19 -> 0 | U19: ='Ввод данных'!K19 -> 6 | V19: ='Ввод данных'!F19 -> 1 | W19: 16.7% | X19: ='Ввод данных'!G19 -> 0 | Z19: ='Ввод данных'!H19 -> 5 | AA19: 83.3% | AB19: ='Ввод данных'!I19 -> 6 | AC19: 100.0% | AD19: ='Ввод данных'!J19 -> 0 | AE19: 0.0% | AF19: ='Ввод данных'!Q19 -> 6 | AG19: ='Ввод данных'!L19 -> 1 | AH19: 16.7% | AI19: ='Ввод данных'!M19 -> 0 | AK19: ='Ввод данных'!N19 -> 5 | AL19: 83.3% | AM19: ='Ввод данных'!O19 -> 6 | AN19: 100.0% | AO19: ='Ввод данных'!P19 -> 0 | AP19: 0.0% | AQ19: ='Ввод данных'!W19 -> 6 | AR19: ='Ввод данных'!R19 -> 1 | AS19: 16.7% | AT19: ='Ввод данных'!S19 -> 0 | AV19: ='Ввод данных'!T19 -> 5 | AW19: 83.3% | AX19: ='Ввод данных'!U19 -> 6 | AY19: 100.0% | AZ19: ='Ввод данных'!V19 -> 0 | BA19: 0.0% | BB19: ='Ввод данных'!AC19 -> 6 | BC19: ='Ввод данных'!X19 -> 1 | BD19: 16.7% | BE19: ='Ввод данных'!Y19 -> 0 | BG19: ='Ввод данных'!Z19 -> 5 | BH19: 83.3% | BI19: 6 | BJ19: 100.0% | BK19: 0 | BL19: 0.0% | BM19: ='Ввод данных'!AI19 -> 6 | BN19: ='Ввод данных'!AD19 -> 1 | BO19: 16.7% | BP19: ='Ввод данных'!AE19 -> 0 | BR19: ='Ввод данных'!AF19 -> 5 | BS19: 83.3% | BT19: 6 | BU19: 100.0% | BV19: 0 | BW19: 0.0% | BX19: ='Ввод данных'!AO19 -> 6 | BY19: ='Ввод данных'!AJ19 -> 1 | BZ19: 16.7% | CA19: ='Ввод данных'!AK19 -> 0 | CC19: ='Ввод данных'!AL19 -> 5 | CD19: 83.3% | CE19: ='Ввод данных'!AM19 -> 6 | CF19: 100.0% | CG19: ='Ввод данных'!AN19 -> 0 | CH19: 0.0% | CI19: ='Ввод данных'!AU19 -> 6 | CJ19: ='Ввод данных'!AP19 -> 1 | CK19: 16.7% | CL19: ='Ввод данных'!AQ19 -> 0 | CN19: ='Ввод данных'!AR19 -> 5 | CO19: 83.3% | CP19: ='Ввод данных'!AS19 -> 6 | CQ19: 100.0% | CR19: ='Ввод данных'!AT19 -> 0 | CS19: 0.0% | CT19: ='Ввод данных'!BA19 -> 6 | CU19: ='Ввод данных'!AV19 -> 1 | CV19: 16.7% | CW19: ='Ввод данных'!AW19 -> 0 | CY19: ='Ввод данных'!AX19 -> 5 | CZ19: 83.3% | DA19: ='Ввод данных'!AY19 -> 6 | DB19: 100.0% | DC19: ='Ввод данных'!AZ19 -> 0 | DD19: 0.0% | DE19: ='Ввод данных'!BG19 -> 6 | DF19: ='Ввод данных'!BB19 -> 1 | DG19: 16.7% | DH19: ='Ввод данных'!BC19 -> 2 | DI19: 33.3% | DJ19: ='Ввод данных'!BD19 -> 3 | DK19: 50.0% | DL19: ='Ввод данных'!BE19 -> 6 | DM19: 100.0% | DN19: ='Ввод данных'!BF19 -> 0 | DO19: 0.0% | DP19: ='Ввод данных'!BM19 -> 6 | DQ19: ='Ввод данных'!BH19 -> 1 | DR19: 16.7% | DS19: ='Ввод данных'!BI19 -> 4 | DT19: 66.7% | DU19: ='Ввод данных'!BJ19 -> 1 | DV19: 16.7% | DW19: ='Ввод данных'!BK19 -> 6 | DX19: 100.0% | DY19: ='Ввод данных'!BL19 -> 0 | DZ19: 0.0% | EA19: ='Ввод данных'!BS19 -> 6 | EB19: ='Ввод данных'!BN19 -> 1 | EC19: 16.7% | ED19: ='Ввод данных'!BO19 -> 5 | EE19: 83.3% | EF19: ='Ввод данных'!BP19 -> 0 | EH19: ='Ввод данных'!BQ19 -> 6 | EI19: 100.0% | EJ19: ='Ввод данных'!BR19 -> 0 | EK19: 0.0%
A20: ИТОГО: | B20: м (ю) | C20: =C10+C12+C14+C16+C18 -> 34 | D20: =IF((C20+C21)=0,"",C20/(C20+C21)) -> 54.8% | E20: =E10+E12+E14+E16+E18 -> 33 | F20: 97.1% | G20: 1 | H20: =IF(C20=0,"",G20/C20) -> 2.9% | I20: 55 | J20: 363 | K20: =K10+K12+K14+K16+K18 -> 94 | L20: 25.9% | M20: 91 | N20: 25.1% | O20: 178 | P20: 49.0% | Q20: =Q10+Q12+Q14+Q16+Q18 -> 363 | R20: 100.0% | S20: 0 | U20: 33 | V20: =V10+V12+V14+V16+V18 -> 8 | W20: =IF(V20=0,"",V20/U20) -> 24.2% | X20: =X10+X12+X14+X16+X18 -> 6 | Y20: =IF(X20=0,"",X20/U20) -> 18.2% | Z20: =Z10+Z12+Z14+Z16+Z18 -> 19 | AA20: =IF(Z20=0,"",Z20/U20) -> 57.6% | AB20: =AB10+AB12+AB14+AB16+AB18 -> 33 | AC20: =IF(AB20=0,"",AB20/U20) -> 100.0% | AD20: =AD10+AD12+AD14+AD16+AD18 -> 0 | AE20: =IF(AB20=0,"",AD20/U20) -> 0.0% | AF20: =AF10+AF12+AF14+AF16+AF18 -> 33 | AG20: =AG10+AG12+AG14+AG16+AG18 -> 8 | AH20: =IF(AG20=0,"",AG20/AF20) -> 24.2% | AI20: =AI10+AI12+AI14+AI16+AI18 -> 8 | AJ20: =IF(AI20=0,"",AI20/AF20) -> 24.2% | AK20: =AK10+AK12+AK14+AK16+AK18 -> 17 | AL20: =IF(AK20=0,"",AK20/AF20) -> 51.5% | AM20: =AM10+AM12+AM14+AM16+AM18 -> 33 | AN20: =IF(AM20=0,"",AM20/AF20) -> 100.0% | AO20: =AO10+AO12+AO14+AO16+AO18 -> 0 | AP20: 0.0% | AQ20: =AQ10+AQ12+AQ14+AQ16+AQ18 -> 33 | AR20: =AR10+AR12+AR14+AR16+AR18 -> 8 | AS20: =IF(AR20=0,"",AR20/AQ20) -> 24.2% | AT20: =AT10+AT12+AT14+AT16+AT18 -> 7 | AU20: =IF(AT20=0,"",AT20/AQ20) -> 21.2% | AV20: =AV10+AV12+AV14+AV16+AV18 -> 18 | AW20: =IF(AV20=0,"",AV20/AQ20) -> 54.5% | AX20: =AX10+AX12+AX14+AX16+AX18 -> 33 | AY20: =IF(AX20=0,"",AX20/AQ20) -> 100.0% | AZ20: =AZ10+AZ12+AZ14+AZ16+AZ18 -> 0 | BA20: =IF(AX20=0,"",AZ20/AQ20) -> 0.0% | BB20: 33 | BC20: =BC10+BC12+BC14+BC16+BC18 -> 8 | BD20: =IF(BC20=0,"",BC20/BB20) -> 24.2% | BE20: =BE10+BE12+BE14+BE16+BE18 -> 7 | BF20: =IF(BE20=0,"",BE20/BB20) -> 21.2% | BG20: =BG10+BG12+BG14+BG16+BG18 -> 18 | BH20: =IF(BG20=0,"",BG20/BB20) -> 54.5% | BI20: =BI10+BI12+BI14+BI16+BI18 -> 33 | BJ20: =IF(BI20=0,"",BI20/BB20) -> 100.0% | BK20: =BK10+BK12+BK14+BK16+BK18 -> 0 | BL20: =IF(BI20=0,"",BK20/BB20) -> 0.0% | BM20: 33 | BN20: =BN10+BN12+BN14+BN16+BN18 -> 8 | BO20: =IF(BN20=0,"",BN20/BM20) -> 24.2% | BP20: =BP10+BP12+BP14+BP16+BP18 -> 9 | BQ20: =IF(BP20=0,"",BP20/BM20) -> 27.3% | BR20: =BR10+BR12+BR14+BR16+BR18 -> 16 | BS20: =IF(BR20=0,"",BR20/BM20) -> 48.5% | BT20: =BT10+BT12+BT14+BT16+BT18 -> 33 | BU20: 100.0% | BV20: =BV10+BV12+BV14+BV16+BV18 -> 0 | BW20: 0.0% | BX20: 33 | BY20: =BY10+BY12+BY14+BY16+BY18 -> 8 | BZ20: 24.2% | CA20: =CA10+CA12+CA14+CA16+CA18 -> 7 | CB20: 21.2% | CC20: =CC10+CC12+CC14+CC16+CC18 -> 18 | CD20: 54.5% | CE20: =CE10+CE12+CE14+CE16+CE18 -> 33 | CF20: 100.0% | CG20: =CG10+CG12+CG14+CG16+CG18 -> 0 | CH20: 0.0% | CI20: =CI10+CI12+CI14+CI16+CI18 -> 33 | CJ20: =CJ10+CJ12+CJ14+CJ16+CJ18 -> 8 | CK20: 24.2% | CL20: =CL10+CL12+CL14+CL16+CL18 -> 7 | CM20: 21.2% | CN20: =CN10+CN12+CN14+CN16+CN18 -> 18 | CO20: 54.5% | CP20: =CP10+CP12+CP14+CP16+CP18 -> 33 | CQ20: 100.0% | CR20: =CR10+CR12+CR14+CR16+CR18 -> 0 | CS20: 0.0% | CT20: =CT10+CT12+CT14+CT16+CT18 -> 33 | CU20: 10 | CV20: 30.3% | CW20: =CW10+CW12+CW14+CW16+CW18 -> 8 | CX20: 24.2% | CY20: =CY10+CY12+CY14+CY16+CY18 -> 15 | CZ20: 45.5% | DA20: =DA10+DA12+DA14+DA16+DA18 -> 33 | DB20: 100.0% | DC20: =DC10+DC12+DC14+DC16+DC18 -> 0 | DD20: 0.0% | DE20: =DE10+DE12+DE14+DE16+DE18 -> 33 | DF20: =DF10+DF12+DF14+DF16+DF18 -> 8 | DG20: 24.2% | DH20: =DH10+DH12+DH14+DH16+DH18 -> 7 | DI20: 21.2% | DJ20: =DJ10+DJ12+DJ14+DJ16+DJ18 -> 18 | DK20: 54.5% | DL20: =DL10+DL12+DL14+DL16+DL18 -> 33 | DM20: 100.0% | DN20: =DN10+DN12+DN14+DN16+DN18 -> 0 | DO20: 0.0% | DP20: =DP10+DP12+DP14+DP16+DP18 -> 33 | DQ20: 10 | DR20: 30.3% | DS20: =DS10+DS12+DS14+DS16+DS18 -> 11 | DT20: 33.3% | DU20: =DU10+DU12+DU14+DU16+DU18 -> 12 | DV20: 36.4% | DW20: =DW10+DW12+DW14+DW16+DW18 -> 33 | DX20: 100.0% | DY20: =DY10+DY12+DY14+DY16+DY18 -> 0 | DZ20: 0.0% | EA20: =EA10+EA12+EA14+EA16+EA18 -> 33 | EB20: 10 | EC20: 30.3% | ED20: =ED10+ED12+ED14+ED16+ED18 -> 14 | EE20: 42.4% | EF20: =EF10+EF12+EF14+EF16+EF18 -> 9 | EG20: 27.3% | EH20: =EH10+EH12+EH14+EH16+EH18 -> 33 | EI20: 100.0% | EJ20: =EJ10+EJ12+EJ14+EJ16+EJ18 -> 0 | EK20: 0.0%
B21: д | C21: =C11+C13+C15+C17+C19 -> 28 | D21: =IF((C20+C21)=0,"",C21/(C20+C21)) -> 45.2% | E21: 27 | F21: 96.4% | G21: 1 | H21: =IF(C21=0,"",G21/C21) -> 3.6% | I21: 55 | J21: 297 | K21: 23 | L21: 7.7% | M21: 87 | N21: 29.3% | O21: 187 | P21: 63.0% | Q21: =Q11+Q13+Q15+Q17+Q19 -> 297 | R21: 100.0% | S21: 0 | U21: 27 | V21: =V11+V13+V15+V17+V19 -> 2 | W21: =IF(V21=0,"",V21/U21) -> 7.4% | X21: =X11+X13+X15+X17+X19 -> 5 | Y21: =IF(X21=0,"",X21/U21) -> 18.5% | Z21: =Z11+Z13+Z15+Z17+Z19 -> 20 | AA21: =IF(Z21=0,"",Z21/U21) -> 74.1% | AB21: =AB11+AB13+AB15+AB17+AB19 -> 27 | AC21: =IF(AB21=0,"",AB21/U21) -> 100.0% | AD21: =AD11+AD13+AD15+AD17+AD19 -> 0 | AE21: =IF(AB21=0,"",AD21/U21) -> 0.0% | AF21: =AF11+AF13+AF15+AF17+AF19 -> 27 | AG21: =AG11+AG13+AG15+AG17+AG19 -> 2 | AH21: =IF(AG21=0,"",AG21/AF21) -> 7.4% | AI21: =AI11+AI13+AI15+AI17+AI19 -> 5 | AJ21: =IF(AI21=0,"",AI21/AF21) -> 18.5% | AK21: =AK11+AK13+AK15+AK17+AK19 -> 20 | AL21: =IF(AK21=0,"",AK21/AF21) -> 74.1% | AM21: =AM11+AM13+AM15+AM17+AM19 -> 27 | AN21: =IF(AM21=0,"",AM21/AF21) -> 100.0% | AO21: =AO11+AO13+AO15+AO17+AO19 -> 0 | AP21: 0.0% | AQ21: 27 | AR21: =AR11+AR13+AR15+AR17+AR19 -> 3 | AS21: =IF(AR21=0,"",AR21/AQ21) -> 11.1% | AT21: =AT11+AT13+AT15+AT17+AT19 -> 5 | AU21: =IF(AT21=0,"",AT21/AQ21) -> 18.5% | AV21: =AV11+AV13+AV15+AV17+AV19 -> 19 | AW21: =IF(AV21=0,"",AV21/AQ21) -> 70.4% | AX21: =AX11+AX13+AX15+AX17+AX19 -> 27 | AY21: =IF(AX21=0,"",AX21/AQ21) -> 100.0% | AZ21: =AZ11+AZ13+AZ15+AZ17+AZ19 -> 0 | BA21: =IF(AX21=0,"",AZ21/AQ21) -> 0.0% | BB21: 27 | BC21: 2 | BD21: =IF(BC21=0,"",BC21/BB21) -> 7.4% | BE21: 8 | BF21: =IF(BE21=0,"",BE21/BB21) -> 29.6% | BG21: 17 | BH21: =IF(BG21=0,"",BG21/BB21) -> 63.0% | BI21: =BI11+BI13+BI15+BI17+BI19 -> 27 | BJ21: =IF(BI21=0,"",BI21/BB21) -> 100.0% | BK21: 0 | BL21: =IF(BI21=0,"",BK21/BB21) -> 0.0% | BM21: 27 | BN21: 2 | BO21: =IF(BN21=0,"",BN21/BM21) -> 7.4% | BP21: 8 | BQ21: =IF(BP21=0,"",BP21/BM21) -> 29.6% | BR21: 17 | BS21: =IF(BR21=0,"",BR21/BM21) -> 63.0% | BT21: =BT11+BT13+BT15+BT17+BT19 -> 27 | BU21: 100.0% | BV21: 0 | BW21: 0.0% | BX21: 27 | BY21: 2 | BZ21: 7.4% | CA21: 6 | CB21: 22.2% | CC21: 19 | CD21: 70.4% | CE21: =CE11+CE13+CE15+CE17+CE19 -> 27 | CF21: 100.0% | CG21: 0 | CH21: 0.0% | CI21: =CI11+CI13+CI15+CI17+CI19 -> 27 | CJ21: 1 | CK21: 3.7% | CL21: 7 | CM21: 25.9% | CN21: 19 | CO21: 70.4% | CP21: =CP11+CP13+CP15+CP17+CP19 -> 27 | CQ21: 100.0% | CR21: 0 | CS21: 0.0% | CT21: 27 | CU21: 2 | CV21: 7.4% | CW21: 6 | CX21: 22.2% | CY21: 19 | CZ21: 70.4% | DA21: =DA11+DA13+DA15+DA17+DA19 -> 27 | DB21: 100.0% | DC21: 0 | DD21: 0.0% | DE21: =DE11+DE13+DE15+DE17+DE19 -> 27 | DF21: 2 | DG21: 7.4% | DH21: 7 | DI21: 25.9% | DJ21: 18 | DK21: 66.7% | DL21: =DL11+DL13+DL15+DL17+DL19 -> 27 | DM21: 100.0% | DN21: 0 | DO21: 0.0% | DP21: 27 | DQ21: 3 | DR21: 11.1% | DS21: 12 | DT21: 44.4% | DU21: 12 | DV21: 44.4% | DW21: =DW11+DW13+DW15+DW17+DW19 -> 27 | DX21: 100.0% | DY21: 0 | DZ21: 0.0% | EA21: 27 | EB21: 2 | EC21: 7.4% | ED21: 18 | EE21: 66.7% | EF21: 7 | EG21: 25.9% | EH21: =EH11+EH13+EH15+EH17+EH19 -> 27 | EI21: 100.0% | EJ21: 0 | EK21: 0.0%
A22: Общее количество | C22: =C20+C21 -> 62 | D22: =IF((C20+C21)=0,"",(C20+C21)/(C20+C21)) -> 100.0% | E22: =E20+E21 -> 60 | F22: 96.8% | G22: =G20+G21 -> 2 | H22: =IF(C22=0,"",G22/C22) -> 3.2% | I22: =I20+I21 -> 110 | J22: 660 | K22: =K20+K21 -> 117 | L22: 17.7% | M22: =M20+M21 -> 178 | N22: 27.0% | O22: =O20+O21 -> 365 | P22: 55.3% | Q22: =Q20+Q21 -> 660 | R22: 100.0% | S22: =S20+S21 -> 0 | U22: =U20+U21 -> 60 | V22: =V20+V21 -> 10 | W22: 16.7% | X22: =X20+X21 -> 11 | Y22: 18.3% | Z22: =Z20+Z21 -> 39 | AA22: 65.0% | AB22: =AB20+AB21 -> 60 | AC22: 100.0% | AD22: =AD20+AD21 -> 0 | AE22: 0.0% | AF22: =AF20+AF21 -> 60 | AG22: =AG20+AG21 -> 10 | AH22: 16.7% | AI22: =AI20+AI21 -> 13 | AJ22: 21.7% | AK22: =AK20+AK21 -> 37 | AL22: 61.7% | AM22: =AM20+AM21 -> 60 | AN22: 100.0% | AO22: =AO20+AO21 -> 0 | AP22: 0.0% | AQ22: =AQ20+AQ21 -> 60 | AR22: =AR20+AR21 -> 11 | AS22: 18.3% | AT22: =AT20+AT21 -> 12 | AU22: 20.0% | AV22: =AV20+AV21 -> 37 | AW22: 61.7% | AX22: =AX20+AX21 -> 60 | AY22: 100.0% | AZ22: =AZ20+AZ21 -> 0 | BA22: 0.0% | BB22: =BB20+BB21 -> 60 | BC22: =BC20+BC21 -> 10 | BD22: 16.7% | BE22: =BE20+BE21 -> 15 | BF22: 25.0% | BG22: =BG20+BG21 -> 35 | BH22: 58.3% | BI22: =BI20+BI21 -> 60 | BJ22: 100.0% | BK22: =BK20+BK21 -> 0 | BL22: 0.0% | BM22: =BM20+BM21 -> 60 | BN22: =BN20+BN21 -> 10 | BO22: 16.7% | BP22: =BP20+BP21 -> 17 | BQ22: 28.3% | BR22: =BR20+BR21 -> 33 | BS22: 55.0% | BT22: =BT20+BT21 -> 60 | BU22: 100.0% | BV22: =BV20+BV21 -> 0 | BW22: 0.0% | BX22: =BX20+BX21 -> 60 | BY22: =BY20+BY21 -> 10 | BZ22: 16.7% | CA22: =CA20+CA21 -> 13 | CB22: 21.7% | CC22: =CC20+CC21 -> 37 | CD22: 61.7% | CE22: =CE20+CE21 -> 60 | CF22: 100.0% | CG22: =CG20+CG21 -> 0 | CH22: 0.0% | CI22: =CI20+CI21 -> 60 | CJ22: =CJ20+CJ21 -> 9 | CK22: 15.0% | CL22: =CL20+CL21 -> 14 | CM22: 23.3% | CN22: =CN20+CN21 -> 37 | CO22: 61.7% | CP22: =CP20+CP21 -> 60 | CQ22: 100.0% | CR22: =CR20+CR21 -> 0 | CS22: 0.0% | CT22: 63 | CU22: =CU20+CU21 -> 12 | CV22: 19.0% | CW22: =CW20+CW21 -> 14 | CX22: 22.2% | CY22: =CY20+CY21 -> 34 | CZ22: 54.0% | DA22: =DA20+DA21 -> 60 | DB22: 95.2% | DC22: =DC20+DC21 -> 0 | DD22: 0.0% | DE22: =DE20+DE21 -> 60 | DF22: =DF20+DF21 -> 10 | DG22: 16.7% | DH22: =DH20+DH21 -> 14 | DI22: 23.3% | DJ22: =DJ20+DJ21 -> 36 | DK22: 60.0% | DL22: =DL20+DL21 -> 60 | DM22: 100.0% | DN22: =DN20+DN21 -> 0 | DO22: 0.0% | DP22: =DP20+DP21 -> 60 | DQ22: =DQ20+DQ21 -> 13 | DR22: 21.7% | DS22: =DS20+DS21 -> 23 | DT22: 38.3% | DU22: =DU20+DU21 -> 24 | DV22: 40.0% | DW22: =DW20+DW21 -> 60 | DX22: 100.0% | DY22: =DY20+DY21 -> 0 | DZ22: 0.0% | EA22: =EA20+EA21 -> 60 | EB22: =EB20+EB21 -> 12 | EC22: 20.0% | ED22: =ED20+ED21 -> 32 | EE22: 53.3% | EF22: =EF20+EF21 -> 16 | EG22: 26.7% | EH22: =EH20+EH21 -> 60 | EI22: 100.0% | EJ22: =EJ20+EJ21 -> 0 | EK22: 0.0%
